﻿Body Name,Supp ID,,Supplier Name,Service Area Category,Supp Grp,Period,Invoice Date,TT,Unique Invoice Reference,,Inv Amount,Account,Expenditure Description,Cost C,Cost Centre Name,Posted Amount
Nottinghamshire Fire and Rescue Service,104098,Total Gas & Power Limited,Total Gas & Power Limited,Operational Responses,5,202211,21/10/2021,P6,9099904,-964.68,964.68,2101,Gas,1020,Stockhill,803.91
Nottinghamshire Fire and Rescue Service,103685,AB Sports Nutrition,AB Sports Nutrition,Management & Support Services,5,202211,27/03/2022,P6,9099892,-529.34,529.34,B314,Stock ,9999,Default,441.12
Nottinghamshire Fire and Rescue Service,104134,Xact Consultancy & Training Limited,Xact Consultancy & Training Limited,"Statutory Inspection, Certification & Enforcement",5,202211,20/03/2022,P6,9099818,-1536,1536,4100,Computer Hardware/ Software,2021,Fire Protection,1280
Nottinghamshire Fire and Rescue Service,102190,Dot Promotional Clothing,Dot Promotional Clothing,Management & Support Services,1,202211,28/02/2022,P6,9099938,-287.8,287.8,B314,Stock ,9999,Default,239.84
Nottinghamshire Fire and Rescue Service,101866,Leicestershire Fire & Rescue Service (Bacs),Leicestershire Fire & Rescue Service (Bacs),Operational Responses,4,202211,24/02/2022,P6,9099870,-37953.94,37953.94,4101,Computer Software Maintenance Contracts,2005,Fire Control,31628.28
Nottinghamshire Fire and Rescue Service,100468,Specialised Canvas Group,Specialised Canvas Group,Management & Support Services,1,202211,24/02/2022,P6,9099928,-592.36,592.36,4534,Carriage and Packaging,2086,Procurement,23.03
Nottinghamshire Fire and Rescue Service,100468,Specialised Canvas Group,Specialised Canvas Group,Management & Support Services,1,202211,24/02/2022,P6,9099928,-592.36,592.36,B314,Stock ,9999,Default,470.6
Nottinghamshire Fire and Rescue Service,102051,Johnsons Business Moves,Johnsons Business Moves,Management & Support Services,1,202211,24/02/2022,P6,9099924,-852,852,C107,Business Moves,4102,Strategic New Build Projects,710
Nottinghamshire Fire and Rescue Service,101001,Express Recruitment Ltd,Express Recruitment Ltd,Management & Support Services,1,202211,23/02/2022,P6,9099952,-293.4,293.4,1005,Admin Agency Staff,2086,Procurement,244.5
Nottinghamshire Fire and Rescue Service,104167,"Graham Asset Management, John Graham Holdings Limited","Graham Asset Management, John Graham Holdings Limited",Management & Support Services,5,202211,23/02/2022,P6,9099923,-268.88,268.88,4104,Non-Contracted Services - ICT,2097,ICT Service Operations,224.07
Nottinghamshire Fire and Rescue Service,103849,Vision Support Services Ltd,Vision Support Services Ltd,Operational Responses,5,202211,23/02/2022,P6,9099908,-305.88,305.88,4600,Community Safety Delivery Consumables,1026,Arnold,254.9
Nottinghamshire Fire and Rescue Service,103277,Actorshop Training Associates,Actorshop Training Associates,Management & Support Services,5,202211,22/02/2022,P6,9099887,-600,600,1801,Training,2054,Equalities Team,600
Nottinghamshire Fire and Rescue Service,103443,Terberg DTS UK Limited,Terberg DTS UK Limited,Management & Support Services,5,202211,22/02/2022,P6,9099922,-284.99,284.99,4007,Equipment Annual Service,2084,Engineering,17.5
Nottinghamshire Fire and Rescue Service,103443,Terberg DTS UK Limited,Terberg DTS UK Limited,Management & Support Services,5,202211,22/02/2022,P6,9099922,-284.99,284.99,4007,Equipment Annual Service,2084,Engineering,219.99
Nottinghamshire Fire and Rescue Service,100396,Digital Fudge Ltd,Digital Fudge Ltd,Management & Support Services,1,202211,22/02/2022,P6,9099945,-1500,1500,C202,Consultancy and Services,4300,ICT Capital Programme,1500
Nottinghamshire Fire and Rescue Service,103377,Flat Fee Recruiter Limited,Flat Fee Recruiter Limited,Management & Support Services,5,202211,21/02/2022,P6,9099927,-597.6,597.6,1850,Recruitment Advertising,2049,Professional Support,498
Nottinghamshire Fire and Rescue Service,103678,Fitness Warehouse Limited t/a Gym Gear,Fitness Warehouse Limited t/a Gym Gear,Management & Support Services,5,202211,21/02/2022,P6,9099881,-1188,1188,2000,Buildings Repairs and Maintenance - Reactive,2087,Estates Department (Previously Premises),990
Nottinghamshire Fire and Rescue Service,101656,Amplivox Ltd,Amplivox Ltd,Management & Support Services,1,202211,21/02/2022,P6,9099959,-1998.72,1998.72,4512,Medical Equipment Maintenance,2061,Occupational Health & Fitness,1665.6
Nottinghamshire Fire and Rescue Service,103849,Vision Support Services Ltd,Vision Support Services Ltd,Operational Responses,5,202211,21/02/2022,P6,9099929,-305.88,305.88,4600,Community Safety Delivery Consumables,1025,Hucknall,254.9
Nottinghamshire Fire and Rescue Service,103023,City Electrical Factors Ltd,City Electrical Factors Ltd,Management & Support Services,5,202211,20/02/2022,P6,9099907,-294.12,294.12,4594,Training/ Teaching Equipment,2059,Corporate Training,245.1
Nottinghamshire Fire and Rescue Service,103443,Terberg DTS UK Limited,Terberg DTS UK Limited,Management & Support Services,5,202211,18/02/2022,P6,9099949,-274.67,274.67,4008,Equipment Reative Maintenance,2084,Engineering,228.89
Nottinghamshire Fire and Rescue Service,103277,Actorshop Training Associates,Actorshop Training Associates,Management & Support Services,5,202211,17/02/2022,P6,9099827,-600,600,1801,Training,2054,Equalities Team,600
Nottinghamshire Fire and Rescue Service,101817,RCES (UK) Ltd,RCES (UK) Ltd,Management & Support Services,1,202211,17/02/2022,P6,9099843,-4890,4890,1801,Training,2059,Corporate Training,4075
Nottinghamshire Fire and Rescue Service,103766,CERTAS,CERTAS,Operational Responses,5,202211,17/02/2022,P6,9099867,-10127.62,10127.62,3200,Fuel - Vehicle,1029,Highfields Station,8439.68
Nottinghamshire Fire and Rescue Service,102322,Sws Environmental Services Ltd,Sws Environmental Services Ltd,Management & Support Services,1,202211,17/02/2022,P6,9099829,-714,714,4000,Operational Equipment Purchase,2084,Engineering,595
Nottinghamshire Fire and Rescue Service,101312,Lift Components Limited,Lift Components Limited,Management & Support Services,1,202211,17/02/2022,P6,9099946,-253.2,253.2,4534,Carriage and Packaging,2086,Procurement,15
Nottinghamshire Fire and Rescue Service,101312,Lift Components Limited,Lift Components Limited,Management & Support Services,1,202211,17/02/2022,P6,9099946,-253.2,253.2,B314,Stock ,9999,Default,196
Nottinghamshire Fire and Rescue Service,102051,Johnsons Business Moves,Johnsons Business Moves,Management & Support Services,1,202211,17/02/2022,P6,9099875,-625.2,625.2,C107,Business Moves,4102,Strategic New Build Projects,521
Nottinghamshire Fire and Rescue Service,101893,Lincolnshire County Council,Lincolnshire County Council,Operational Responses,4,202211,16/02/2022,P6,9099878,-20115.41,20115.41,1201,Operational Pay,2005,Fire Control,102.75
Nottinghamshire Fire and Rescue Service,101893,Lincolnshire County Council,Lincolnshire County Council,Operational Responses,4,202211,16/02/2022,P6,9099878,-20115.41,20115.41,1201,Operational Pay,2005,Fire Control,15416.76
Nottinghamshire Fire and Rescue Service,101893,Lincolnshire County Council,Lincolnshire County Council,Operational Responses,4,202211,16/02/2022,P6,9099878,-20115.41,20115.41,1208,Operational NI,2005,Fire Control,1836.57
Nottinghamshire Fire and Rescue Service,101893,Lincolnshire County Council,Lincolnshire County Council,Operational Responses,4,202211,16/02/2022,P6,9099878,-20115.41,20115.41,1209,Operational Superannuation,2005,Fire Control,2715.9
Nottinghamshire Fire and Rescue Service,101893,Lincolnshire County Council,Lincolnshire County Council,Operational Responses,4,202211,16/02/2022,P6,9099878,-20115.41,20115.41,3500,Casual Mileage,2005,Fire Control,43.43
Nottinghamshire Fire and Rescue Service,101190,Lyon Equipment Limited,Lyon Equipment Limited,Management & Support Services,1,202211,16/02/2022,P6,9099709,-259.2,259.2,4000,Operational Equipment Purchase,2084,Engineering,216
Nottinghamshire Fire and Rescue Service,100242,Cipfa Business Ltd,Cipfa Business Ltd,Management & Support Services,1,202211,16/02/2022,P6,9099847,-3860,3860,4582,Reference Books and Publications,2081,Finance,3860
Nottinghamshire Fire and Rescue Service,102123,The Institution Of Fire Engineers,The Institution Of Fire Engineers,"Statutory Inspection, Certification & Enforcement",1,202211,15/02/2022,P6,9099823,-2040,2040,1801,Training,2021,Fire Protection,1700
Nottinghamshire Fire and Rescue Service,102741,CFM Services,CFM Services,Management & Support Services,5,202211,15/02/2022,P6,9099806,-382.8,382.8,4534,Carriage and Packaging,2086,Procurement,8.5
Nottinghamshire Fire and Rescue Service,102741,CFM Services,CFM Services,Management & Support Services,5,202211,15/02/2022,P6,9099806,-382.8,382.8,B314,Stock ,9999,Default,310.5
Nottinghamshire Fire and Rescue Service,101867,Nottinghamshire Police and Crime Commissioner,Nottinghamshire Police and Crime Commissioner,Management & Support Services,4,202211,15/02/2022,P6,9099876,-175531.53,175531.53,C101,Building Works,4102,Strategic New Build Projects,175531.53
Nottinghamshire Fire and Rescue Service,101867,Nottinghamshire Police and Crime Commissioner,Nottinghamshire Police and Crime Commissioner,Management & Support Services,4,202211,15/02/2022,P6,9099930,-285209.81,285209.81,C101,Building Works,4102,Strategic New Build Projects,285209.81
Nottinghamshire Fire and Rescue Service,104017,K Lamb Associates Limited,K Lamb Associates Limited,Management & Support Services,5,202211,14/02/2022,P6,9099706,-6960,6960,1801,Training,2059,Corporate Training,5800
Nottinghamshire Fire and Rescue Service,104017,K Lamb Associates Limited,K Lamb Associates Limited,Management & Support Services,5,202211,14/02/2022,P6,9099707,-3480,3480,1801,Training,2059,Corporate Training,2900
Nottinghamshire Fire and Rescue Service,103650,Carsington Sports & Leisure Limited,Carsington Sports & Leisure Limited,Management & Support Services,5,202211,14/02/2022,P6,9099720,-900,900,1801,Training,2059,Corporate Training,750
Nottinghamshire Fire and Rescue Service,101847,The Outreach Organisation Limited,The Outreach Organisation Limited,Management & Support Services,1,202211,14/02/2022,P6,9099871,-1452,1452,1801,Training,2059,Corporate Training,1210
Nottinghamshire Fire and Rescue Service,101124,Southcombe Bros Ltd,Southcombe Bros Ltd,Management & Support Services,1,202211,14/02/2022,P6,9099715,-550.62,550.62,4534,Carriage and Packaging,2086,Procurement,12.85
Nottinghamshire Fire and Rescue Service,101124,Southcombe Bros Ltd,Southcombe Bros Ltd,Management & Support Services,1,202211,14/02/2022,P6,9099715,-550.62,550.62,B314,Stock ,9999,Default,446
Nottinghamshire Fire and Rescue Service,101001,Express Recruitment Ltd,Express Recruitment Ltd,Management & Support Services,1,202211,13/02/2022,P6,9099861,-723.72,723.72,1005,Admin Agency Staff,2086,Procurement,603.1
Nottinghamshire Fire and Rescue Service,104098,Total Gas & Power Limited,Total Gas & Power Limited,Operational Responses,5,202211,11/02/2022,P6,9099779,-860.85,860.85,2101,Gas,1006,Edwinstowe,717.38
Nottinghamshire Fire and Rescue Service,104098,Total Gas & Power Limited,Total Gas & Power Limited,Operational Responses,5,202211,11/02/2022,P6,9099780,-1483.88,1483.88,2101,Gas,1005,Ashfield,1236.57
Nottinghamshire Fire and Rescue Service,104098,Total Gas & Power Limited,Total Gas & Power Limited,Operational Responses,5,202211,11/02/2022,P6,9099786,-292.24,292.24,2101,Gas,1017,Bingham,243.53
Nottinghamshire Fire and Rescue Service,104098,Total Gas & Power Limited,Total Gas & Power Limited,Operational Responses,5,202211,11/02/2022,P6,9099787,-786.21,786.21,2101,Gas,1019,West Bridgford,655.18
Nottinghamshire Fire and Rescue Service,104098,Total Gas & Power Limited,Total Gas & Power Limited,Operational Responses,5,202211,11/02/2022,P6,9099788,-1188.52,1188.52,2101,Gas,1008,Worksop,990.43
Nottinghamshire Fire and Rescue Service,104098,Total Gas & Power Limited,Total Gas & Power Limited,Operational Responses,5,202211,11/02/2022,P6,9099789,-538.63,538.63,2101,Gas,1024,Eastwood,448.86
Nottinghamshire Fire and Rescue Service,104098,Total Gas & Power Limited,Total Gas & Power Limited,Operational Responses,5,202211,11/02/2022,P6,9099790,-551.91,551.91,2101,Gas,1012,Retford,459.93
Nottinghamshire Fire and Rescue Service,104098,Total Gas & Power Limited,Total Gas & Power Limited,Operational Responses,5,202211,11/02/2022,P6,9099791,-690.57,690.57,2101,Gas,1027,Carlton,575.48
Nottinghamshire Fire and Rescue Service,104098,Total Gas & Power Limited,Total Gas & Power Limited,Operational Responses,5,202211,11/02/2022,P6,9099792,-939.47,939.47,2101,Gas,1020,Stockhill,782.89
Nottinghamshire Fire and Rescue Service,104098,Total Gas & Power Limited,Total Gas & Power Limited,Operational Responses,5,202211,11/02/2022,P6,9099793,-410.73,410.73,2101,Gas,1016,Newark,342.28
Nottinghamshire Fire and Rescue Service,104098,Total Gas & Power Limited,Total Gas & Power Limited,Operational Responses,5,202211,11/02/2022,P6,9099794,-1736.24,1736.24,2101,Gas,1001,Mansfield,1446.87
Nottinghamshire Fire and Rescue Service,104098,Total Gas & Power Limited,Total Gas & Power Limited,Management & Support Services,5,202211,11/02/2022,P6,9099795,-759.78,759.78,2101,Gas,1030,Service Development Centre,633.15
Nottinghamshire Fire and Rescue Service,103766,CERTAS,CERTAS,Operational Responses,5,202211,11/02/2022,P6,9099809,-11485.24,11485.24,3200,Fuel - Vehicle,1019,West Bridgford,9571.03
Nottinghamshire Fire and Rescue Service,102376,Bristol Uniforms Limited,Bristol Uniforms Limited,Management & Support Services,1,202211,11/02/2022,P6,9099799,-2009.81,2009.81,B314,Stock ,9999,Default,1674.84
Nottinghamshire Fire and Rescue Service,103981,Joseph Gleave and Son Limited -Joseph Gleave and Son (Holdings) Limited,Joseph Gleave and Son Limited -Joseph Gleave and Son (Holdings) Limited,Management & Support Services,5,202211,11/02/2022,P6,9099828,-515.63,515.63,B314,Stock ,9999,Default,429.69
Nottinghamshire Fire and Rescue Service,104011,Le Strange Services Limited,Le Strange Services Limited,Management & Support Services,5,202211,10/02/2022,P6,9099831,-498,498,1801,Training,2059,Corporate Training,415
Nottinghamshire Fire and Rescue Service,103766,CERTAS,CERTAS,Operational Responses,5,202211,10/02/2022,P6,9099810,-1711.87,1711.87,3200,Fuel - Vehicle,1008,Worksop,1426.56
Nottinghamshire Fire and Rescue Service,102741,CFM Services,CFM Services,Management & Support Services,5,202211,10/02/2022,P6,9099830,-258.6,258.6,4534,Carriage and Packaging,2086,Procurement,8.5
Nottinghamshire Fire and Rescue Service,102741,CFM Services,CFM Services,Management & Support Services,5,202211,10/02/2022,P6,9099830,-258.6,258.6,B314,Stock ,9999,Default,207
Nottinghamshire Fire and Rescue Service,101001,Express Recruitment Ltd,Express Recruitment Ltd,Management & Support Services,1,202211,09/02/2022,P6,9099640,-723.72,723.72,1005,Admin Agency Staff,2086,Procurement,603.1
Nottinghamshire Fire and Rescue Service,102465,Acclimbatize Limited,Acclimbatize Limited,Prevention & Education,1,202211,09/02/2022,JP,2003522,3270,-3270,1801,Training,3004,Prince's Trust,-3270
Nottinghamshire Fire and Rescue Service,101745,Networking Women In The Fire Service,Networking Women In The Fire Service,Management & Support Services,1,202211,09/02/2022,P6,9099645,-500,500,1815,Professional Body Subscriptions,2054,Equalities Team,500
Nottinghamshire Fire and Rescue Service,101812,A B Waste Disposal Ltd,A B Waste Disposal Ltd,Operational Responses,1,202211,09/02/2022,JP,2003508,-275.42,275.42,2101,Gas,1002,Blidworth,405.88
Nottinghamshire Fire and Rescue Service,102276,Water Plus Limited (Payments Centre),Water Plus Limited (Payments Centre),Operational Responses,1,202211,09/02/2022,JP,2003514,-485.86,485.86,2103,Water Rates,1023,Stapleford,250.26
Nottinghamshire Fire and Rescue Service,102276,Water Plus Limited (Payments Centre),Water Plus Limited (Payments Centre),Operational Responses,1,202211,09/02/2022,JP,2003515,-470.66,470.66,2103,Water Rates,1023,Stapleford,242.48
Nottinghamshire Fire and Rescue Service,102276,Water Plus Limited (Payments Centre),Water Plus Limited (Payments Centre),Operational Responses,1,202211,09/02/2022,JP,2003516,-485.86,485.86,2103,Water Rates,1023,Stapleford,250.26
Nottinghamshire Fire and Rescue Service,102276,Water Plus Limited (Payments Centre),Water Plus Limited (Payments Centre),Operational Responses,1,202211,09/02/2022,JP,2003517,-829.99,829.99,2103,Water Rates,1023,Stapleford,427.26
Nottinghamshire Fire and Rescue Service,102276,Water Plus Limited (Payments Centre),Water Plus Limited (Payments Centre),Operational Responses,1,202211,09/02/2022,JP,2003518,-1387.84,1387.84,2103,Water Rates,1023,Stapleford,698.12
Nottinghamshire Fire and Rescue Service,102276,Water Plus Limited (Payments Centre),Water Plus Limited (Payments Centre),Operational Responses,1,202211,09/02/2022,JP,2003520,1871.71,-1871.71,2103,Water Rates,1023,Stapleford,-818.42
Nottinghamshire Fire and Rescue Service,102276,Water Plus Limited (Payments Centre),Water Plus Limited (Payments Centre),Operational Responses,1,202211,09/02/2022,JP,2003514,-485.86,485.86,2104,Sewerage and Environmental,1023,Stapleford,235.6
Nottinghamshire Fire and Rescue Service,102276,Water Plus Limited (Payments Centre),Water Plus Limited (Payments Centre),Operational Responses,1,202211,09/02/2022,JP,2003515,-470.66,470.66,2104,Sewerage and Environmental,1023,Stapleford,228.18
Nottinghamshire Fire and Rescue Service,102276,Water Plus Limited (Payments Centre),Water Plus Limited (Payments Centre),Operational Responses,1,202211,09/02/2022,JP,2003516,-485.86,485.86,2104,Sewerage and Environmental,1023,Stapleford,235.6
Nottinghamshire Fire and Rescue Service,102276,Water Plus Limited (Payments Centre),Water Plus Limited (Payments Centre),Operational Responses,1,202211,09/02/2022,JP,2003517,-829.99,829.99,2104,Sewerage and Environmental,1023,Stapleford,402.73
Nottinghamshire Fire and Rescue Service,102276,Water Plus Limited (Payments Centre),Water Plus Limited (Payments Centre),Operational Responses,1,202211,09/02/2022,JP,2003518,-1387.84,1387.84,2104,Sewerage and Environmental,1023,Stapleford,689.72
Nottinghamshire Fire and Rescue Service,102276,Water Plus Limited (Payments Centre),Water Plus Limited (Payments Centre),Operational Responses,1,202211,09/02/2022,JP,2003520,1871.71,-1871.71,2104,Sewerage and Environmental,1023,Stapleford,-1053.29
Nottinghamshire Fire and Rescue Service,103820,VIA East Midlands Ltd,VIA East Midlands Ltd,Operational Responses,5,202211,09/02/2022,JP,2003524,7389.66,-7389.66,3300,Officers Vehicle Leasing,2004,South District,-4737.26
Nottinghamshire Fire and Rescue Service,103820,VIA East Midlands Ltd,VIA East Midlands Ltd,Operational Responses,5,202211,09/02/2022,JP,2003524,7389.66,-7389.66,3300,Officers Vehicle Leasing,2004,South District,-397.48
Nottinghamshire Fire and Rescue Service,103820,VIA East Midlands Ltd,VIA East Midlands Ltd,Operational Responses,5,202211,09/02/2022,JP,2003524,7389.66,-7389.66,3300,Officers Vehicle Leasing,2004,South District,-10
Nottinghamshire Fire and Rescue Service,103820,VIA East Midlands Ltd,VIA East Midlands Ltd,Operational Responses,5,202211,09/02/2022,JP,2003524,7389.66,-7389.66,3300,Officers Vehicle Leasing,2013,Service Delivery,-490.82
Nottinghamshire Fire and Rescue Service,103820,VIA East Midlands Ltd,VIA East Midlands Ltd,Management & Support Services,5,202211,09/02/2022,JP,2003524,7389.66,-7389.66,3300,Officers Vehicle Leasing,2064,Special Project Team,-10
Nottinghamshire Fire and Rescue Service,103820,VIA East Midlands Ltd,VIA East Midlands Ltd,Management & Support Services,5,202211,09/02/2022,JP,2003524,7389.66,-7389.66,3300,Officers Vehicle Leasing,2070,Strategic Support,-10
Nottinghamshire Fire and Rescue Service,102623,Con-Space Communications (Europe) Ltd,Con-Space Communications (Europe) Ltd,Operational Responses,1,202211,09/02/2022,JP,2003523,287.1,-287.1,4202,Communication Equipment - Maintenance,2013,Service Delivery,-1364.93
Nottinghamshire Fire and Rescue Service,102623,Con-Space Communications (Europe) Ltd,Con-Space Communications (Europe) Ltd,Operational Responses,1,202211,09/02/2022,JP,2003523,320.54,-320.54,4202,Communication Equipment - Maintenance,2013,Service Delivery,-1364.93
Nottinghamshire Fire and Rescue Service,102623,Con-Space Communications (Europe) Ltd,Con-Space Communications (Europe) Ltd,Operational Responses,1,202211,09/02/2022,JP,2003523,502.69,-502.69,4202,Communication Equipment - Maintenance,2013,Service Delivery,-1364.93
Nottinghamshire Fire and Rescue Service,103849,Vision Support Services Ltd,Vision Support Services Ltd,Operational Responses,5,202211,09/02/2022,P6,9099619,-822.96,822.96,4600,Community Safety Delivery Consumables,1020,Stockhill,685.8
Nottinghamshire Fire and Rescue Service,103849,Vision Support Services Ltd,Vision Support Services Ltd,Operational Responses,5,202211,09/02/2022,P6,9099622,-411.48,411.48,4600,Community Safety Delivery Consumables,1026,Arnold,342.9
Nottinghamshire Fire and Rescue Service,103849,Vision Support Services Ltd,Vision Support Services Ltd,Operational Responses,5,202211,09/02/2022,P6,9099623,-1028.7,1028.7,4600,Community Safety Delivery Consumables,1020,Stockhill,857.25
Nottinghamshire Fire and Rescue Service,102558,Merridale Ltd,Merridale Ltd,Management & Support Services,1,202211,08/02/2022,P6,9099633,-1935.6,1935.6,3200,Fuel - Vehicle,2084,Engineering,1613
Nottinghamshire Fire and Rescue Service,103849,Vision Support Services Ltd,Vision Support Services Ltd,Management & Support Services,5,202211,08/02/2022,P6,9099606,-822.96,822.96,4600,Community Safety Delivery Consumables,2068,Prevention,685.8
Nottinghamshire Fire and Rescue Service,103849,Vision Support Services Ltd,Vision Support Services Ltd,Operational Responses,5,202211,08/02/2022,P6,9099886,-411.48,411.48,4600,Community Safety Delivery Consumables,1026,Arnold,342.9
Nottinghamshire Fire and Rescue Service,104007,Castle Water Limited,Castle Water Limited,Operational Responses,5,202211,07/02/2022,P6,9099768,-286.07,286.07,2103,Water Rates,1013,Tuxford,56.26
Nottinghamshire Fire and Rescue Service,104007,Castle Water Limited,Castle Water Limited,Operational Responses,5,202211,07/02/2022,P6,9099770,-397.46,397.46,2103,Water Rates,1026,Arnold,127.89
Nottinghamshire Fire and Rescue Service,104007,Castle Water Limited,Castle Water Limited,Operational Responses,5,202211,07/02/2022,P6,9099771,-261.02,261.02,2103,Water Rates,1006,Edwinstowe,43.89
Nottinghamshire Fire and Rescue Service,104007,Castle Water Limited,Castle Water Limited,Operational Responses,5,202211,07/02/2022,P6,9099772,-766.12,766.12,2103,Water Rates,1016,Newark,91.51
Nottinghamshire Fire and Rescue Service,104007,Castle Water Limited,Castle Water Limited,Operational Responses,5,202211,07/02/2022,P6,9099768,-286.07,286.07,2104,Sewerage and Environmental,1013,Tuxford,229.81
Nottinghamshire Fire and Rescue Service,104007,Castle Water Limited,Castle Water Limited,Operational Responses,5,202211,07/02/2022,P6,9099770,-397.46,397.46,2104,Sewerage and Environmental,1026,Arnold,269.57
Nottinghamshire Fire and Rescue Service,104007,Castle Water Limited,Castle Water Limited,Operational Responses,5,202211,07/02/2022,P6,9099771,-261.02,261.02,2104,Sewerage and Environmental,1006,Edwinstowe,217.13
Nottinghamshire Fire and Rescue Service,104007,Castle Water Limited,Castle Water Limited,Operational Responses,5,202211,07/02/2022,P6,9099772,-766.12,766.12,2104,Sewerage and Environmental,1016,Newark,674.61
Nottinghamshire Fire and Rescue Service,102864,William Sugden & sons Limited,William Sugden & sons Limited,Management & Support Services,5,202211,07/02/2022,P6,9099660,-264.22,264.22,B314,Stock ,9999,Default,220.18
Nottinghamshire Fire and Rescue Service,102073,B D Motor Spares,B D Motor Spares,Operational Responses,1,202211,06/02/2022,P6,9099561,-5280,5280,4594,Training/ Teaching Equipment,1005,Ashfield,660
Nottinghamshire Fire and Rescue Service,102073,B D Motor Spares,B D Motor Spares,Operational Responses,1,202211,06/02/2022,P6,9099561,-5280,5280,4594,Training/ Teaching Equipment,1008,Worksop,440
Nottinghamshire Fire and Rescue Service,102073,B D Motor Spares,B D Motor Spares,Operational Responses,1,202211,06/02/2022,P6,9099561,-5280,5280,4594,Training/ Teaching Equipment,1012,Retford,440
Nottinghamshire Fire and Rescue Service,102073,B D Motor Spares,B D Motor Spares,Operational Responses,1,202211,06/02/2022,P6,9099561,-5280,5280,4594,Training/ Teaching Equipment,1014,Southwell,440
Nottinghamshire Fire and Rescue Service,102073,B D Motor Spares,B D Motor Spares,Operational Responses,1,202211,06/02/2022,P6,9099561,-5280,5280,4594,Training/ Teaching Equipment,1016,Newark,220
Nottinghamshire Fire and Rescue Service,102073,B D Motor Spares,B D Motor Spares,Operational Responses,1,202211,06/02/2022,P6,9099561,-5280,5280,4594,Training/ Teaching Equipment,1016,Newark,440
Nottinghamshire Fire and Rescue Service,102073,B D Motor Spares,B D Motor Spares,Operational Responses,1,202211,06/02/2022,P6,9099561,-5280,5280,4594,Training/ Teaching Equipment,1026,Arnold,440
Nottinghamshire Fire and Rescue Service,102073,B D Motor Spares,B D Motor Spares,Management & Support Services,1,202211,06/02/2022,P6,9099561,-5280,5280,4594,Training/ Teaching Equipment,2059,Corporate Training,220
Nottinghamshire Fire and Rescue Service,103377,Flat Fee Recruiter Limited,Flat Fee Recruiter Limited,Management & Support Services,5,202211,04/02/2022,P6,9099906,-298.8,298.8,1850,Recruitment Advertising,2049,Professional Support,249
Nottinghamshire Fire and Rescue Service,103344,Bytes Software Services Ltd,Bytes Software Services Ltd,Management & Support Services,5,202211,04/02/2022,P6,9099546,-552,552,4101,Computer Software Maintenance Contracts,2097,ICT Service Operations,460
Nottinghamshire Fire and Rescue Service,103730,J A Burns t/a squircle IT,J A Burns t/a squircle IT,Management & Support Services,5,202211,04/02/2022,P6,9099833,-1228.8,1228.8,4104,Non-Contracted Services - ICT,2097,ICT Service Operations,1024
Nottinghamshire Fire and Rescue Service,101994,Peli Products (Uk) Ltd,Peli Products (Uk) Ltd,Management & Support Services,1,202211,04/02/2022,P6,9099824,-527.94,527.94,4534,Carriage and Packaging,2086,Procurement,9.51
Nottinghamshire Fire and Rescue Service,104197,NTG Consultants Limited,NTG Consultants Limited,Management & Support Services,5,202211,04/02/2022,P6,9099948,-660,660,4554,Consultancy Fees - Non Estates Related,2049,Professional Support,550
Nottinghamshire Fire and Rescue Service,103981,Joseph Gleave and Son Limited -Joseph Gleave and Son (Holdings) Limited,Joseph Gleave and Son Limited -Joseph Gleave and Son (Holdings) Limited,Management & Support Services,5,202211,04/02/2022,P6,9099566,-315.36,315.36,B314,Stock ,9999,Default,262.8
Nottinghamshire Fire and Rescue Service,101994,Peli Products (Uk) Ltd,Peli Products (Uk) Ltd,Management & Support Services,1,202211,04/02/2022,P6,9099824,-527.94,527.94,B314,Stock ,9999,Default,430.44
Nottinghamshire Fire and Rescue Service,101903,Siemens Energy Services Ltd,Siemens Energy Services Ltd,Management & Support Services,1,202211,03/02/2022,P6,9099774,-594.46,594.46,2100,Electricity,1030,Service Development Centre,495.38
Nottinghamshire Fire and Rescue Service,103443,Terberg DTS UK Limited,Terberg DTS UK Limited,Management & Support Services,5,202211,03/02/2022,P6,9099564,-1759.8,1759.8,4007,Equipment Annual Service,2084,Engineering,1466.5
Nottinghamshire Fire and Rescue Service,101001,Express Recruitment Ltd,Express Recruitment Ltd,Management & Support Services,1,202211,02/02/2022,P6,9099545,-1447.44,1447.44,1005,Admin Agency Staff,2058,HR Support,603.1
Nottinghamshire Fire and Rescue Service,101001,Express Recruitment Ltd,Express Recruitment Ltd,Management & Support Services,1,202211,02/02/2022,P6,9099545,-1447.44,1447.44,1005,Admin Agency Staff,2086,Procurement,603.1
Nottinghamshire Fire and Rescue Service,103820,VIA East Midlands Ltd,VIA East Midlands Ltd,Management & Support Services,5,202211,02/02/2022,P6,9099815,-12936.54,12936.54,3100,Fleet Maintenance - Planned,2084,Engineering,10814.95
Nottinghamshire Fire and Rescue Service,103820,VIA East Midlands Ltd,VIA East Midlands Ltd,Management & Support Services,5,202211,02/02/2022,P6,9099819,-23750.53,23750.53,3103,Fleet Maintenance - Unplanned,2084,Engineering,19792.11
Nottinghamshire Fire and Rescue Service,102586,Cfoa (Services) Ltd,Cfoa (Services) Ltd,Management & Support Services,1,202211,02/02/2022,P6,9099590,-3705.6,3705.6,4100,Computer Hardware/ Software,2084,Engineering,3088
Nottinghamshire Fire and Rescue Service,100468,Specialised Canvas Group,Specialised Canvas Group,Management & Support Services,1,202211,02/02/2022,P6,9099835,-502.17,502.17,4534,Carriage and Packaging,2086,Procurement,17.23
Nottinghamshire Fire and Rescue Service,103685,AB Sports Nutrition,AB Sports Nutrition,Management & Support Services,5,202211,02/02/2022,P6,9099536,-264.67,264.67,B314,Stock ,9999,Default,220.56
Nottinghamshire Fire and Rescue Service,102376,Bristol Uniforms Limited,Bristol Uniforms Limited,Management & Support Services,1,202211,02/02/2022,P6,9099666,-3570.84,3570.84,B314,Stock ,9999,Default,2975.7
Nottinghamshire Fire and Rescue Service,100468,Specialised Canvas Group,Specialised Canvas Group,Management & Support Services,1,202211,02/02/2022,P6,9099835,-502.17,502.17,B314,Stock ,9999,Default,401.24
Nottinghamshire Fire and Rescue Service,103730,J A Burns t/a squircle IT,J A Burns t/a squircle IT,Management & Support Services,5,202211,02/02/2022,P6,9099507,-3072,3072,C202,Consultancy and Services,4102,Strategic New Build Projects,2560
Nottinghamshire Fire and Rescue Service,102744,EDF Energy,EDF Energy,Operational Responses,1,202211,01/02/2022,P6,9099763,-279.33,279.33,2100,Electricity,1014,Southwell,1.78
Nottinghamshire Fire and Rescue Service,102744,EDF Energy,EDF Energy,Operational Responses,1,202211,01/02/2022,P6,9099763,-279.33,279.33,2100,Electricity,1014,Southwell,231.29
Nottinghamshire Fire and Rescue Service,100557,NCC Sundry Debtors,NCC Sundry Debtors,Management & Support Services,4,202211,01/02/2022,P6,9099669,-1131.62,1131.62,2201,Grounds Maintenance,1035,Headquarters,943.02
Nottinghamshire Fire and Rescue Service,100557,NCC Sundry Debtors,NCC Sundry Debtors,Operational Responses,4,202211,01/02/2022,P6,9099671,-1757.15,1757.15,2201,Grounds Maintenance,1001,Mansfield,38.54
Nottinghamshire Fire and Rescue Service,100557,NCC Sundry Debtors,NCC Sundry Debtors,Operational Responses,4,202211,01/02/2022,P6,9099671,-1757.15,1757.15,2201,Grounds Maintenance,1002,Blidworth,66.02
Nottinghamshire Fire and Rescue Service,100557,NCC Sundry Debtors,NCC Sundry Debtors,Operational Responses,4,202211,01/02/2022,P6,9099671,-1757.15,1757.15,2201,Grounds Maintenance,1003,London Road,35.43
Nottinghamshire Fire and Rescue Service,100557,NCC Sundry Debtors,NCC Sundry Debtors,Operational Responses,4,202211,01/02/2022,P6,9099671,-1757.15,1757.15,2201,Grounds Maintenance,1005,Ashfield,177.17
Nottinghamshire Fire and Rescue Service,100557,NCC Sundry Debtors,NCC Sundry Debtors,Operational Responses,4,202211,01/02/2022,P6,9099671,-1757.15,1757.15,2201,Grounds Maintenance,1006,Edwinstowe,37.47
Nottinghamshire Fire and Rescue Service,100557,NCC Sundry Debtors,NCC Sundry Debtors,Operational Responses,4,202211,01/02/2022,P6,9099671,-1757.15,1757.15,2201,Grounds Maintenance,1007,Warsop,3.24
Nottinghamshire Fire and Rescue Service,100557,NCC Sundry Debtors,NCC Sundry Debtors,Operational Responses,4,202211,01/02/2022,P6,9099671,-1757.15,1757.15,2201,Grounds Maintenance,1008,Worksop,34.99
Nottinghamshire Fire and Rescue Service,100557,NCC Sundry Debtors,NCC Sundry Debtors,Operational Responses,4,202211,01/02/2022,P6,9099671,-1757.15,1757.15,2201,Grounds Maintenance,1010,Harworth,41.13
Nottinghamshire Fire and Rescue Service,100557,NCC Sundry Debtors,NCC Sundry Debtors,Operational Responses,4,202211,01/02/2022,P6,9099671,-1757.15,1757.15,2201,Grounds Maintenance,1011,Misterton,38.18
Nottinghamshire Fire and Rescue Service,100557,NCC Sundry Debtors,NCC Sundry Debtors,Operational Responses,4,202211,01/02/2022,P6,9099671,-1757.15,1757.15,2201,Grounds Maintenance,1012,Retford,25.61
Nottinghamshire Fire and Rescue Service,100557,NCC Sundry Debtors,NCC Sundry Debtors,Operational Responses,4,202211,01/02/2022,P6,9099671,-1757.15,1757.15,2201,Grounds Maintenance,1013,Tuxford,26.62
Nottinghamshire Fire and Rescue Service,100557,NCC Sundry Debtors,NCC Sundry Debtors,Operational Responses,4,202211,01/02/2022,P6,9099671,-1757.15,1757.15,2201,Grounds Maintenance,1014,Southwell,25.3
Nottinghamshire Fire and Rescue Service,100557,NCC Sundry Debtors,NCC Sundry Debtors,Operational Responses,4,202211,01/02/2022,P6,9099671,-1757.15,1757.15,2201,Grounds Maintenance,1015,Collingham,14.81
Nottinghamshire Fire and Rescue Service,100557,NCC Sundry Debtors,NCC Sundry Debtors,Operational Responses,4,202211,01/02/2022,P6,9099671,-1757.15,1757.15,2201,Grounds Maintenance,1016,Newark,36.76
Nottinghamshire Fire and Rescue Service,100557,NCC Sundry Debtors,NCC Sundry Debtors,Operational Responses,4,202211,01/02/2022,P6,9099671,-1757.15,1757.15,2201,Grounds Maintenance,1017,Bingham,62.36
Nottinghamshire Fire and Rescue Service,100557,NCC Sundry Debtors,NCC Sundry Debtors,Operational Responses,4,202211,01/02/2022,P6,9099671,-1757.15,1757.15,2201,Grounds Maintenance,1019,West Bridgford,105.73
Nottinghamshire Fire and Rescue Service,100557,NCC Sundry Debtors,NCC Sundry Debtors,Operational Responses,4,202211,01/02/2022,P6,9099671,-1757.15,1757.15,2201,Grounds Maintenance,1020,Stockhill,210.32
Nottinghamshire Fire and Rescue Service,100557,NCC Sundry Debtors,NCC Sundry Debtors,Operational Responses,4,202211,01/02/2022,P6,9099671,-1757.15,1757.15,2201,Grounds Maintenance,1023,Stapleford,78.35
Nottinghamshire Fire and Rescue Service,100557,NCC Sundry Debtors,NCC Sundry Debtors,Operational Responses,4,202211,01/02/2022,P6,9099671,-1757.15,1757.15,2201,Grounds Maintenance,1024,Eastwood,26.37
Nottinghamshire Fire and Rescue Service,100557,NCC Sundry Debtors,NCC Sundry Debtors,Operational Responses,4,202211,01/02/2022,P6,9099671,-1757.15,1757.15,2201,Grounds Maintenance,1026,Arnold,11
Nottinghamshire Fire and Rescue Service,100557,NCC Sundry Debtors,NCC Sundry Debtors,Operational Responses,4,202211,01/02/2022,P6,9099671,-1757.15,1757.15,2201,Grounds Maintenance,1027,Carlton,9.94
Nottinghamshire Fire and Rescue Service,100557,NCC Sundry Debtors,NCC Sundry Debtors,Operational Responses,4,202211,01/02/2022,P6,9099671,-1757.15,1757.15,2201,Grounds Maintenance,1028,East Leake,129.31
Nottinghamshire Fire and Rescue Service,100557,NCC Sundry Debtors,NCC Sundry Debtors,Operational Responses,4,202211,01/02/2022,P6,9099671,-1757.15,1757.15,2201,Grounds Maintenance,1029,Highfields Station,77.08
Nottinghamshire Fire and Rescue Service,100557,NCC Sundry Debtors,NCC Sundry Debtors,Management & Support Services,4,202211,01/02/2022,P6,9099671,-1757.15,1757.15,2201,Grounds Maintenance,1030,Service Development Centre,152.56
Nottinghamshire Fire and Rescue Service,100557,NCC Sundry Debtors,NCC Sundry Debtors,Operational Responses,4,202211,01/02/2022,P6,9099489,-556.34,556.34,2204,Contract Cleaning,1001,Mansfield,15.01
Nottinghamshire Fire and Rescue Service,100557,NCC Sundry Debtors,NCC Sundry Debtors,Operational Responses,4,202211,01/02/2022,P6,9099489,-556.34,556.34,2204,Contract Cleaning,1002,Blidworth,11.26
Nottinghamshire Fire and Rescue Service,100557,NCC Sundry Debtors,NCC Sundry Debtors,Operational Responses,4,202211,01/02/2022,P6,9099489,-556.34,556.34,2204,Contract Cleaning,1003,London Road,14.07
Nottinghamshire Fire and Rescue Service,100557,NCC Sundry Debtors,NCC Sundry Debtors,Operational Responses,4,202211,01/02/2022,P6,9099489,-556.34,556.34,2204,Contract Cleaning,1005,Ashfield,15.01
Nottinghamshire Fire and Rescue Service,100557,NCC Sundry Debtors,NCC Sundry Debtors,Operational Responses,4,202211,01/02/2022,P6,9099489,-556.34,556.34,2204,Contract Cleaning,1006,Edwinstowe,11.26
Nottinghamshire Fire and Rescue Service,100557,NCC Sundry Debtors,NCC Sundry Debtors,Operational Responses,4,202211,01/02/2022,P6,9099489,-556.34,556.34,2204,Contract Cleaning,1007,Warsop,11.26
Nottinghamshire Fire and Rescue Service,100557,NCC Sundry Debtors,NCC Sundry Debtors,Operational Responses,4,202211,01/02/2022,P6,9099489,-556.34,556.34,2204,Contract Cleaning,1008,Worksop,15.01
Nottinghamshire Fire and Rescue Service,100557,NCC Sundry Debtors,NCC Sundry Debtors,Operational Responses,4,202211,01/02/2022,P6,9099489,-556.34,556.34,2204,Contract Cleaning,1010,Harworth,11.26
Nottinghamshire Fire and Rescue Service,100557,NCC Sundry Debtors,NCC Sundry Debtors,Operational Responses,4,202211,01/02/2022,P6,9099489,-556.34,556.34,2204,Contract Cleaning,1011,Misterton,11.26
Nottinghamshire Fire and Rescue Service,100557,NCC Sundry Debtors,NCC Sundry Debtors,Operational Responses,4,202211,01/02/2022,P6,9099489,-556.34,556.34,2204,Contract Cleaning,1012,Retford,11.26
Nottinghamshire Fire and Rescue Service,100557,NCC Sundry Debtors,NCC Sundry Debtors,Operational Responses,4,202211,01/02/2022,P6,9099489,-556.34,556.34,2204,Contract Cleaning,1013,Tuxford,11.26
Nottinghamshire Fire and Rescue Service,100557,NCC Sundry Debtors,NCC Sundry Debtors,Operational Responses,4,202211,01/02/2022,P6,9099489,-556.34,556.34,2204,Contract Cleaning,1014,Southwell,11.26
Nottinghamshire Fire and Rescue Service,100557,NCC Sundry Debtors,NCC Sundry Debtors,Operational Responses,4,202211,01/02/2022,P6,9099489,-556.34,556.34,2204,Contract Cleaning,1015,Collingham,11.26
Nottinghamshire Fire and Rescue Service,100557,NCC Sundry Debtors,NCC Sundry Debtors,Operational Responses,4,202211,01/02/2022,P6,9099489,-556.34,556.34,2204,Contract Cleaning,1016,Newark,15.01
Nottinghamshire Fire and Rescue Service,100557,NCC Sundry Debtors,NCC Sundry Debtors,Operational Responses,4,202211,01/02/2022,P6,9099489,-556.34,556.34,2204,Contract Cleaning,1017,Bingham,11.26
Nottinghamshire Fire and Rescue Service,100557,NCC Sundry Debtors,NCC Sundry Debtors,Operational Responses,4,202211,01/02/2022,P6,9099489,-556.34,556.34,2204,Contract Cleaning,1019,West Bridgford,15.01
Nottinghamshire Fire and Rescue Service,100557,NCC Sundry Debtors,NCC Sundry Debtors,Operational Responses,4,202211,01/02/2022,P6,9099489,-556.34,556.34,2204,Contract Cleaning,1020,Stockhill,15.01
Nottinghamshire Fire and Rescue Service,100557,NCC Sundry Debtors,NCC Sundry Debtors,Operational Responses,4,202211,01/02/2022,P6,9099489,-556.34,556.34,2204,Contract Cleaning,1023,Stapleford,11.26
Nottinghamshire Fire and Rescue Service,100557,NCC Sundry Debtors,NCC Sundry Debtors,Operational Responses,4,202211,01/02/2022,P6,9099489,-556.34,556.34,2204,Contract Cleaning,1024,Eastwood,11.26
Nottinghamshire Fire and Rescue Service,100557,NCC Sundry Debtors,NCC Sundry Debtors,Operational Responses,4,202211,01/02/2022,P6,9099489,-556.34,556.34,2204,Contract Cleaning,1026,Arnold,15.01
Nottinghamshire Fire and Rescue Service,100557,NCC Sundry Debtors,NCC Sundry Debtors,Operational Responses,4,202211,01/02/2022,P6,9099489,-556.34,556.34,2204,Contract Cleaning,1027,Carlton,15.01
Nottinghamshire Fire and Rescue Service,100557,NCC Sundry Debtors,NCC Sundry Debtors,Operational Responses,4,202211,01/02/2022,P6,9099489,-556.34,556.34,2204,Contract Cleaning,1028,East Leake,11.26
Nottinghamshire Fire and Rescue Service,100557,NCC Sundry Debtors,NCC Sundry Debtors,Operational Responses,4,202211,01/02/2022,P6,9099489,-556.34,556.34,2204,Contract Cleaning,1029,Highfields Station,15.01
Nottinghamshire Fire and Rescue Service,100557,NCC Sundry Debtors,NCC Sundry Debtors,Management & Support Services,4,202211,01/02/2022,P6,9099489,-556.34,556.34,2204,Contract Cleaning,1030,Service Development Centre,33.77
Nottinghamshire Fire and Rescue Service,100557,NCC Sundry Debtors,NCC Sundry Debtors,Management & Support Services,4,202211,01/02/2022,P6,9099489,-556.34,556.34,2204,Contract Cleaning,1035,Headquarters,134.31
Nottinghamshire Fire and Rescue Service,100557,NCC Sundry Debtors,NCC Sundry Debtors,Operational Responses,4,202211,01/02/2022,P6,9099670,-3249.88,3249.88,2204,Contract Cleaning,1007,Warsop,161.16
Nottinghamshire Fire and Rescue Service,100557,NCC Sundry Debtors,NCC Sundry Debtors,Operational Responses,4,202211,01/02/2022,P6,9099670,-3249.88,3249.88,2204,Contract Cleaning,1010,Harworth,322.41
Nottinghamshire Fire and Rescue Service,100557,NCC Sundry Debtors,NCC Sundry Debtors,Operational Responses,4,202211,01/02/2022,P6,9099670,-3249.88,3249.88,2204,Contract Cleaning,1011,Misterton,257.94
Nottinghamshire Fire and Rescue Service,100557,NCC Sundry Debtors,NCC Sundry Debtors,Operational Responses,4,202211,01/02/2022,P6,9099670,-3249.88,3249.88,2204,Contract Cleaning,1013,Tuxford,193.37
Nottinghamshire Fire and Rescue Service,100557,NCC Sundry Debtors,NCC Sundry Debtors,Operational Responses,4,202211,01/02/2022,P6,9099670,-3249.88,3249.88,2204,Contract Cleaning,1014,Southwell,290.2
Nottinghamshire Fire and Rescue Service,100557,NCC Sundry Debtors,NCC Sundry Debtors,Operational Responses,4,202211,01/02/2022,P6,9099670,-3249.88,3249.88,2204,Contract Cleaning,1015,Collingham,290.2
Nottinghamshire Fire and Rescue Service,100557,NCC Sundry Debtors,NCC Sundry Debtors,Operational Responses,4,202211,01/02/2022,P6,9099670,-3249.88,3249.88,2204,Contract Cleaning,1017,Bingham,193.56
Nottinghamshire Fire and Rescue Service,100557,NCC Sundry Debtors,NCC Sundry Debtors,Operational Responses,4,202211,01/02/2022,P6,9099670,-3249.88,3249.88,2204,Contract Cleaning,1023,Stapleford,483.61
Nottinghamshire Fire and Rescue Service,100557,NCC Sundry Debtors,NCC Sundry Debtors,Operational Responses,4,202211,01/02/2022,P6,9099670,-3249.88,3249.88,2204,Contract Cleaning,1024,Eastwood,322.36
Nottinghamshire Fire and Rescue Service,100557,NCC Sundry Debtors,NCC Sundry Debtors,Operational Responses,4,202211,01/02/2022,P6,9099670,-3249.88,3249.88,2204,Contract Cleaning,1028,East Leake,193.42
Nottinghamshire Fire and Rescue Service,103766,CERTAS,CERTAS,Operational Responses,5,202211,01/02/2022,P6,9099558,-1438.14,1438.14,3200,Fuel - Vehicle,1008,Worksop,1198.45
Nottinghamshire Fire and Rescue Service,103092,Daisy Corporate Services Trading Limited,Daisy Corporate Services Trading Limited,Management & Support Services,1,202211,01/02/2022,P6,9099608,-1265.09,1265.09,4301,Phones - Landline,2096,ICT Service Transformation,1054.24
Nottinghamshire Fire and Rescue Service,101802,EE,EE,Management & Support Services,1,202211,01/02/2022,P6,9099644,-4143.84,4143.84,4302,Phones - Mobiles,2097,ICT Service Operations,3453.2
Nottinghamshire Fire and Rescue Service,103897,The Spray People Group Ltd,The Spray People Group Ltd,Management & Support Services,5,202211,01/02/2022,P6,9099527,-368.1,368.1,4534,Carriage and Packaging,2086,Procurement,18
Nottinghamshire Fire and Rescue Service,103897,The Spray People Group Ltd,The Spray People Group Ltd,Management & Support Services,5,202211,01/02/2022,P6,9099527,-368.1,368.1,B314,Stock ,9999,Default,288.75
Nottinghamshire Fire and Rescue Service,104180,G.F. Tomlinson Building Limited,G.F. Tomlinson Building Limited,Management & Support Services,5,202211,01/02/2022,P6,9099911,-559841.86,559841.86,C101,Building Works,4102,Strategic New Build Projects,466534.88
Nottinghamshire Fire and Rescue Service,104076,Sonovate Lithium3 Technology Contractor Services Invoices,Sonovate Lithium3 Technology Contractor Services Invoices,Management & Support Services,5,202211,31/01/2022,P6,9099555,-4320,4320,1005,Admin Agency Staff,2097,ICT Service Operations,3600
Nottinghamshire Fire and Rescue Service,103958,Lithium3 Technology Recruitment Limited,Lithium3 Technology Recruitment Limited,"Statutory Inspection, Certification & Enforcement",5,202211,31/01/2022,P6,9099572,-1188,1188,1801,Training,2021,Fire Protection,990
Nottinghamshire Fire and Rescue Service,103839,The Knowledge Academy Limited,The Knowledge Academy Limited,Management & Support Services,5,202211,31/01/2022,P6,9099573,-5994,5994,1801,Training,2097,ICT Service Operations,4995
Nottinghamshire Fire and Rescue Service,104168,ioda Limited,ioda Limited,Management & Support Services,5,202211,31/01/2022,P6,9099639,-954,954,1801,Training,2054,Equalities Team,795
Nottinghamshire Fire and Rescue Service,104168,ioda Limited,ioda Limited,Management & Support Services,5,202211,31/01/2022,P6,9099832,-834,834,1801,Training,2054,Equalities Team,695
Nottinghamshire Fire and Rescue Service,104167,"Graham Asset Management, John Graham Holdings Limited","Graham Asset Management, John Graham Holdings Limited",Management & Support Services,5,202211,31/01/2022,P6,9099880,-16112.74,16112.74,2000,Buildings Repairs and Maintenance - Reactive,2087,Estates Department (Previously Premises),28
Nottinghamshire Fire and Rescue Service,104167,"Graham Asset Management, John Graham Holdings Limited","Graham Asset Management, John Graham Holdings Limited",Management & Support Services,5,202211,31/01/2022,P6,9099880,-16112.74,16112.74,2000,Buildings Repairs and Maintenance - Reactive,2087,Estates Department (Previously Premises),66
Nottinghamshire Fire and Rescue Service,104167,"Graham Asset Management, John Graham Holdings Limited","Graham Asset Management, John Graham Holdings Limited",Management & Support Services,5,202211,31/01/2022,P6,9099880,-16112.74,16112.74,2000,Buildings Repairs and Maintenance - Reactive,2087,Estates Department (Previously Premises),70
Nottinghamshire Fire and Rescue Service,104167,"Graham Asset Management, John Graham Holdings Limited","Graham Asset Management, John Graham Holdings Limited",Management & Support Services,5,202211,31/01/2022,P6,9099880,-16112.74,16112.74,2000,Buildings Repairs and Maintenance - Reactive,2087,Estates Department (Previously Premises),93.69
Nottinghamshire Fire and Rescue Service,104167,"Graham Asset Management, John Graham Holdings Limited","Graham Asset Management, John Graham Holdings Limited",Management & Support Services,5,202211,31/01/2022,P6,9099880,-16112.74,16112.74,2000,Buildings Repairs and Maintenance - Reactive,2087,Estates Department (Previously Premises),105
Nottinghamshire Fire and Rescue Service,104167,"Graham Asset Management, John Graham Holdings Limited","Graham Asset Management, John Graham Holdings Limited",Management & Support Services,5,202211,31/01/2022,P6,9099880,-16112.74,16112.74,2000,Buildings Repairs and Maintenance - Reactive,2087,Estates Department (Previously Premises),108.5
Nottinghamshire Fire and Rescue Service,104167,"Graham Asset Management, John Graham Holdings Limited","Graham Asset Management, John Graham Holdings Limited",Management & Support Services,5,202211,31/01/2022,P6,9099880,-16112.74,16112.74,2000,Buildings Repairs and Maintenance - Reactive,2087,Estates Department (Previously Premises),109.51
Nottinghamshire Fire and Rescue Service,104167,"Graham Asset Management, John Graham Holdings Limited","Graham Asset Management, John Graham Holdings Limited",Management & Support Services,5,202211,31/01/2022,P6,9099880,-16112.74,16112.74,2000,Buildings Repairs and Maintenance - Reactive,2087,Estates Department (Previously Premises),136
Nottinghamshire Fire and Rescue Service,104167,"Graham Asset Management, John Graham Holdings Limited","Graham Asset Management, John Graham Holdings Limited",Management & Support Services,5,202211,31/01/2022,P6,9099880,-16112.74,16112.74,2000,Buildings Repairs and Maintenance - Reactive,2087,Estates Department (Previously Premises),228.29
Nottinghamshire Fire and Rescue Service,104167,"Graham Asset Management, John Graham Holdings Limited","Graham Asset Management, John Graham Holdings Limited",Management & Support Services,5,202211,31/01/2022,P6,9099880,-16112.74,16112.74,2000,Buildings Repairs and Maintenance - Reactive,2087,Estates Department (Previously Premises),333.38
Nottinghamshire Fire and Rescue Service,104167,"Graham Asset Management, John Graham Holdings Limited","Graham Asset Management, John Graham Holdings Limited",Management & Support Services,5,202211,31/01/2022,P6,9099880,-16112.74,16112.74,2000,Buildings Repairs and Maintenance - Reactive,2087,Estates Department (Previously Premises),415.18
Nottinghamshire Fire and Rescue Service,104167,"Graham Asset Management, John Graham Holdings Limited","Graham Asset Management, John Graham Holdings Limited",Management & Support Services,5,202211,31/01/2022,P6,9099880,-16112.74,16112.74,2000,Buildings Repairs and Maintenance - Reactive,2087,Estates Department (Previously Premises),496.55
Nottinghamshire Fire and Rescue Service,104167,"Graham Asset Management, John Graham Holdings Limited","Graham Asset Management, John Graham Holdings Limited",Management & Support Services,5,202211,31/01/2022,P6,9099880,-16112.74,16112.74,2000,Buildings Repairs and Maintenance - Reactive,2087,Estates Department (Previously Premises),505.33
Nottinghamshire Fire and Rescue Service,104167,"Graham Asset Management, John Graham Holdings Limited","Graham Asset Management, John Graham Holdings Limited",Management & Support Services,5,202211,31/01/2022,P6,9099880,-16112.74,16112.74,2000,Buildings Repairs and Maintenance - Reactive,2087,Estates Department (Previously Premises),566.07
Nottinghamshire Fire and Rescue Service,104167,"Graham Asset Management, John Graham Holdings Limited","Graham Asset Management, John Graham Holdings Limited",Management & Support Services,5,202211,31/01/2022,P6,9099880,-16112.74,16112.74,2000,Buildings Repairs and Maintenance - Reactive,2087,Estates Department (Previously Premises),676.18
Nottinghamshire Fire and Rescue Service,104167,"Graham Asset Management, John Graham Holdings Limited","Graham Asset Management, John Graham Holdings Limited",Management & Support Services,5,202211,31/01/2022,P6,9099880,-16112.74,16112.74,2000,Buildings Repairs and Maintenance - Reactive,2087,Estates Department (Previously Premises),786.61
Nottinghamshire Fire and Rescue Service,104167,"Graham Asset Management, John Graham Holdings Limited","Graham Asset Management, John Graham Holdings Limited",Management & Support Services,5,202211,31/01/2022,P6,9099880,-16112.74,16112.74,2000,Buildings Repairs and Maintenance - Reactive,2087,Estates Department (Previously Premises),1274.45
Nottinghamshire Fire and Rescue Service,104167,"Graham Asset Management, John Graham Holdings Limited","Graham Asset Management, John Graham Holdings Limited",Management & Support Services,5,202211,31/01/2022,P6,9099880,-16112.74,16112.74,2000,Buildings Repairs and Maintenance - Reactive,2087,Estates Department (Previously Premises),1339.35
Nottinghamshire Fire and Rescue Service,104167,"Graham Asset Management, John Graham Holdings Limited","Graham Asset Management, John Graham Holdings Limited",Management & Support Services,5,202211,31/01/2022,P6,9099880,-16112.74,16112.74,2000,Buildings Repairs and Maintenance - Reactive,2087,Estates Department (Previously Premises),1489.15
Nottinghamshire Fire and Rescue Service,104167,"Graham Asset Management, John Graham Holdings Limited","Graham Asset Management, John Graham Holdings Limited",Management & Support Services,5,202211,31/01/2022,P6,9099880,-16112.74,16112.74,2000,Buildings Repairs and Maintenance - Reactive,2087,Estates Department (Previously Premises),1813.81
Nottinghamshire Fire and Rescue Service,104167,"Graham Asset Management, John Graham Holdings Limited","Graham Asset Management, John Graham Holdings Limited",Management & Support Services,5,202211,31/01/2022,P6,9099880,-16112.74,16112.74,2000,Buildings Repairs and Maintenance - Reactive,2087,Estates Department (Previously Premises),2786.25
Nottinghamshire Fire and Rescue Service,104167,"Graham Asset Management, John Graham Holdings Limited","Graham Asset Management, John Graham Holdings Limited",Management & Support Services,5,202211,31/01/2022,P6,9099882,-21678.67,21678.67,2050,Building Maintenance - Planned,2087,Estates Department (Previously Premises),145.67
Nottinghamshire Fire and Rescue Service,104167,"Graham Asset Management, John Graham Holdings Limited","Graham Asset Management, John Graham Holdings Limited",Management & Support Services,5,202211,31/01/2022,P6,9099882,-21678.67,21678.67,2050,Building Maintenance - Planned,2087,Estates Department (Previously Premises),202.28
Nottinghamshire Fire and Rescue Service,104167,"Graham Asset Management, John Graham Holdings Limited","Graham Asset Management, John Graham Holdings Limited",Management & Support Services,5,202211,31/01/2022,P6,9099882,-21678.67,21678.67,2050,Building Maintenance - Planned,2087,Estates Department (Previously Premises),209.81
Nottinghamshire Fire and Rescue Service,104167,"Graham Asset Management, John Graham Holdings Limited","Graham Asset Management, John Graham Holdings Limited",Management & Support Services,5,202211,31/01/2022,P6,9099882,-21678.67,21678.67,2050,Building Maintenance - Planned,2087,Estates Department (Previously Premises),338.59
Nottinghamshire Fire and Rescue Service,104167,"Graham Asset Management, John Graham Holdings Limited","Graham Asset Management, John Graham Holdings Limited",Management & Support Services,5,202211,31/01/2022,P6,9099882,-21678.67,21678.67,2050,Building Maintenance - Planned,2087,Estates Department (Previously Premises),375.73
Nottinghamshire Fire and Rescue Service,104167,"Graham Asset Management, John Graham Holdings Limited","Graham Asset Management, John Graham Holdings Limited",Management & Support Services,5,202211,31/01/2022,P6,9099882,-21678.67,21678.67,2050,Building Maintenance - Planned,2087,Estates Department (Previously Premises),378.31
Nottinghamshire Fire and Rescue Service,104167,"Graham Asset Management, John Graham Holdings Limited","Graham Asset Management, John Graham Holdings Limited",Management & Support Services,5,202211,31/01/2022,P6,9099882,-21678.67,21678.67,2050,Building Maintenance - Planned,2087,Estates Department (Previously Premises),381.24
Nottinghamshire Fire and Rescue Service,104167,"Graham Asset Management, John Graham Holdings Limited","Graham Asset Management, John Graham Holdings Limited",Management & Support Services,5,202211,31/01/2022,P6,9099882,-21678.67,21678.67,2050,Building Maintenance - Planned,2087,Estates Department (Previously Premises),386.52
Nottinghamshire Fire and Rescue Service,104167,"Graham Asset Management, John Graham Holdings Limited","Graham Asset Management, John Graham Holdings Limited",Management & Support Services,5,202211,31/01/2022,P6,9099882,-21678.67,21678.67,2050,Building Maintenance - Planned,2087,Estates Department (Previously Premises),387.36
Nottinghamshire Fire and Rescue Service,104167,"Graham Asset Management, John Graham Holdings Limited","Graham Asset Management, John Graham Holdings Limited",Management & Support Services,5,202211,31/01/2022,P6,9099882,-21678.67,21678.67,2050,Building Maintenance - Planned,2087,Estates Department (Previously Premises),433.48
Nottinghamshire Fire and Rescue Service,104167,"Graham Asset Management, John Graham Holdings Limited","Graham Asset Management, John Graham Holdings Limited",Management & Support Services,5,202211,31/01/2022,P6,9099882,-21678.67,21678.67,2050,Building Maintenance - Planned,2087,Estates Department (Previously Premises),481.71
Nottinghamshire Fire and Rescue Service,104167,"Graham Asset Management, John Graham Holdings Limited","Graham Asset Management, John Graham Holdings Limited",Management & Support Services,5,202211,31/01/2022,P6,9099882,-21678.67,21678.67,2050,Building Maintenance - Planned,2087,Estates Department (Previously Premises),501.97
Nottinghamshire Fire and Rescue Service,104167,"Graham Asset Management, John Graham Holdings Limited","Graham Asset Management, John Graham Holdings Limited",Management & Support Services,5,202211,31/01/2022,P6,9099882,-21678.67,21678.67,2050,Building Maintenance - Planned,2087,Estates Department (Previously Premises),530
Nottinghamshire Fire and Rescue Service,104167,"Graham Asset Management, John Graham Holdings Limited","Graham Asset Management, John Graham Holdings Limited",Management & Support Services,5,202211,31/01/2022,P6,9099882,-21678.67,21678.67,2050,Building Maintenance - Planned,2087,Estates Department (Previously Premises),550.99
Nottinghamshire Fire and Rescue Service,104167,"Graham Asset Management, John Graham Holdings Limited","Graham Asset Management, John Graham Holdings Limited",Management & Support Services,5,202211,31/01/2022,P6,9099882,-21678.67,21678.67,2050,Building Maintenance - Planned,2087,Estates Department (Previously Premises),606.53
Nottinghamshire Fire and Rescue Service,104167,"Graham Asset Management, John Graham Holdings Limited","Graham Asset Management, John Graham Holdings Limited",Management & Support Services,5,202211,31/01/2022,P6,9099882,-21678.67,21678.67,2050,Building Maintenance - Planned,2087,Estates Department (Previously Premises),660.27
Nottinghamshire Fire and Rescue Service,104167,"Graham Asset Management, John Graham Holdings Limited","Graham Asset Management, John Graham Holdings Limited",Management & Support Services,5,202211,31/01/2022,P6,9099882,-21678.67,21678.67,2050,Building Maintenance - Planned,2087,Estates Department (Previously Premises),673.97
Nottinghamshire Fire and Rescue Service,104167,"Graham Asset Management, John Graham Holdings Limited","Graham Asset Management, John Graham Holdings Limited",Management & Support Services,5,202211,31/01/2022,P6,9099882,-21678.67,21678.67,2050,Building Maintenance - Planned,2087,Estates Department (Previously Premises),735.06
Nottinghamshire Fire and Rescue Service,104167,"Graham Asset Management, John Graham Holdings Limited","Graham Asset Management, John Graham Holdings Limited",Management & Support Services,5,202211,31/01/2022,P6,9099882,-21678.67,21678.67,2050,Building Maintenance - Planned,2087,Estates Department (Previously Premises),744.9
Nottinghamshire Fire and Rescue Service,104167,"Graham Asset Management, John Graham Holdings Limited","Graham Asset Management, John Graham Holdings Limited",Management & Support Services,5,202211,31/01/2022,P6,9099882,-21678.67,21678.67,2050,Building Maintenance - Planned,2087,Estates Department (Previously Premises),930.78
Nottinghamshire Fire and Rescue Service,104167,"Graham Asset Management, John Graham Holdings Limited","Graham Asset Management, John Graham Holdings Limited",Management & Support Services,5,202211,31/01/2022,P6,9099882,-21678.67,21678.67,2050,Building Maintenance - Planned,2087,Estates Department (Previously Premises),1039.06
Nottinghamshire Fire and Rescue Service,104167,"Graham Asset Management, John Graham Holdings Limited","Graham Asset Management, John Graham Holdings Limited",Management & Support Services,5,202211,31/01/2022,P6,9099882,-21678.67,21678.67,2050,Building Maintenance - Planned,2087,Estates Department (Previously Premises),1160.95
Nottinghamshire Fire and Rescue Service,104167,"Graham Asset Management, John Graham Holdings Limited","Graham Asset Management, John Graham Holdings Limited",Management & Support Services,5,202211,31/01/2022,P6,9099882,-21678.67,21678.67,2050,Building Maintenance - Planned,2087,Estates Department (Previously Premises),1289.89
Nottinghamshire Fire and Rescue Service,104167,"Graham Asset Management, John Graham Holdings Limited","Graham Asset Management, John Graham Holdings Limited",Management & Support Services,5,202211,31/01/2022,P6,9099882,-21678.67,21678.67,2050,Building Maintenance - Planned,2087,Estates Department (Previously Premises),1418.48
Nottinghamshire Fire and Rescue Service,104167,"Graham Asset Management, John Graham Holdings Limited","Graham Asset Management, John Graham Holdings Limited",Management & Support Services,5,202211,31/01/2022,P6,9099882,-21678.67,21678.67,2050,Building Maintenance - Planned,2087,Estates Department (Previously Premises),1683.74
Nottinghamshire Fire and Rescue Service,104167,"Graham Asset Management, John Graham Holdings Limited","Graham Asset Management, John Graham Holdings Limited",Management & Support Services,5,202211,31/01/2022,P6,9099882,-21678.67,21678.67,2050,Building Maintenance - Planned,2087,Estates Department (Previously Premises),1818.26
Nottinghamshire Fire and Rescue Service,104167,"Graham Asset Management, John Graham Holdings Limited","Graham Asset Management, John Graham Holdings Limited",Management & Support Services,5,202211,31/01/2022,P6,9099883,-24233.03,24233.03,2050,Building Maintenance - Planned,2087,Estates Department (Previously Premises),246.59
Nottinghamshire Fire and Rescue Service,104167,"Graham Asset Management, John Graham Holdings Limited","Graham Asset Management, John Graham Holdings Limited",Management & Support Services,5,202211,31/01/2022,P6,9099883,-24233.03,24233.03,2050,Building Maintenance - Planned,2087,Estates Department (Previously Premises),261.89
Nottinghamshire Fire and Rescue Service,104167,"Graham Asset Management, John Graham Holdings Limited","Graham Asset Management, John Graham Holdings Limited",Management & Support Services,5,202211,31/01/2022,P6,9099883,-24233.03,24233.03,2050,Building Maintenance - Planned,2087,Estates Department (Previously Premises),289.66
Nottinghamshire Fire and Rescue Service,104167,"Graham Asset Management, John Graham Holdings Limited","Graham Asset Management, John Graham Holdings Limited",Management & Support Services,5,202211,31/01/2022,P6,9099883,-24233.03,24233.03,2050,Building Maintenance - Planned,2087,Estates Department (Previously Premises),300.59
Nottinghamshire Fire and Rescue Service,104167,"Graham Asset Management, John Graham Holdings Limited","Graham Asset Management, John Graham Holdings Limited",Management & Support Services,5,202211,31/01/2022,P6,9099883,-24233.03,24233.03,2050,Building Maintenance - Planned,2087,Estates Department (Previously Premises),317.51
Nottinghamshire Fire and Rescue Service,104167,"Graham Asset Management, John Graham Holdings Limited","Graham Asset Management, John Graham Holdings Limited",Management & Support Services,5,202211,31/01/2022,P6,9099883,-24233.03,24233.03,2050,Building Maintenance - Planned,2087,Estates Department (Previously Premises),327.59
Nottinghamshire Fire and Rescue Service,104167,"Graham Asset Management, John Graham Holdings Limited","Graham Asset Management, John Graham Holdings Limited",Management & Support Services,5,202211,31/01/2022,P6,9099883,-24233.03,24233.03,2050,Building Maintenance - Planned,2087,Estates Department (Previously Premises),373.5
Nottinghamshire Fire and Rescue Service,104167,"Graham Asset Management, John Graham Holdings Limited","Graham Asset Management, John Graham Holdings Limited",Management & Support Services,5,202211,31/01/2022,P6,9099883,-24233.03,24233.03,2050,Building Maintenance - Planned,2087,Estates Department (Previously Premises),409.17
Nottinghamshire Fire and Rescue Service,104167,"Graham Asset Management, John Graham Holdings Limited","Graham Asset Management, John Graham Holdings Limited",Management & Support Services,5,202211,31/01/2022,P6,9099883,-24233.03,24233.03,2050,Building Maintenance - Planned,2087,Estates Department (Previously Premises),439.52
Nottinghamshire Fire and Rescue Service,104167,"Graham Asset Management, John Graham Holdings Limited","Graham Asset Management, John Graham Holdings Limited",Management & Support Services,5,202211,31/01/2022,P6,9099883,-24233.03,24233.03,2050,Building Maintenance - Planned,2087,Estates Department (Previously Premises),494.44
Nottinghamshire Fire and Rescue Service,104167,"Graham Asset Management, John Graham Holdings Limited","Graham Asset Management, John Graham Holdings Limited",Management & Support Services,5,202211,31/01/2022,P6,9099883,-24233.03,24233.03,2050,Building Maintenance - Planned,2087,Estates Department (Previously Premises),509.93
Nottinghamshire Fire and Rescue Service,104167,"Graham Asset Management, John Graham Holdings Limited","Graham Asset Management, John Graham Holdings Limited",Management & Support Services,5,202211,31/01/2022,P6,9099883,-24233.03,24233.03,2050,Building Maintenance - Planned,2087,Estates Department (Previously Premises),548.56
Nottinghamshire Fire and Rescue Service,104167,"Graham Asset Management, John Graham Holdings Limited","Graham Asset Management, John Graham Holdings Limited",Management & Support Services,5,202211,31/01/2022,P6,9099883,-24233.03,24233.03,2050,Building Maintenance - Planned,2087,Estates Department (Previously Premises),587.02
Nottinghamshire Fire and Rescue Service,104167,"Graham Asset Management, John Graham Holdings Limited","Graham Asset Management, John Graham Holdings Limited",Management & Support Services,5,202211,31/01/2022,P6,9099883,-24233.03,24233.03,2050,Building Maintenance - Planned,2087,Estates Department (Previously Premises),603.05
Nottinghamshire Fire and Rescue Service,104167,"Graham Asset Management, John Graham Holdings Limited","Graham Asset Management, John Graham Holdings Limited",Management & Support Services,5,202211,31/01/2022,P6,9099883,-24233.03,24233.03,2050,Building Maintenance - Planned,2087,Estates Department (Previously Premises),640.04
Nottinghamshire Fire and Rescue Service,104167,"Graham Asset Management, John Graham Holdings Limited","Graham Asset Management, John Graham Holdings Limited",Management & Support Services,5,202211,31/01/2022,P6,9099883,-24233.03,24233.03,2050,Building Maintenance - Planned,2087,Estates Department (Previously Premises),712.53
Nottinghamshire Fire and Rescue Service,104167,"Graham Asset Management, John Graham Holdings Limited","Graham Asset Management, John Graham Holdings Limited",Management & Support Services,5,202211,31/01/2022,P6,9099883,-24233.03,24233.03,2050,Building Maintenance - Planned,2087,Estates Department (Previously Premises),750.04
Nottinghamshire Fire and Rescue Service,104167,"Graham Asset Management, John Graham Holdings Limited","Graham Asset Management, John Graham Holdings Limited",Management & Support Services,5,202211,31/01/2022,P6,9099883,-24233.03,24233.03,2050,Building Maintenance - Planned,2087,Estates Department (Previously Premises),752.84
Nottinghamshire Fire and Rescue Service,104167,"Graham Asset Management, John Graham Holdings Limited","Graham Asset Management, John Graham Holdings Limited",Management & Support Services,5,202211,31/01/2022,P6,9099883,-24233.03,24233.03,2050,Building Maintenance - Planned,2087,Estates Department (Previously Premises),800.5
Nottinghamshire Fire and Rescue Service,104167,"Graham Asset Management, John Graham Holdings Limited","Graham Asset Management, John Graham Holdings Limited",Management & Support Services,5,202211,31/01/2022,P6,9099883,-24233.03,24233.03,2050,Building Maintenance - Planned,2087,Estates Department (Previously Premises),844.12
Nottinghamshire Fire and Rescue Service,104167,"Graham Asset Management, John Graham Holdings Limited","Graham Asset Management, John Graham Holdings Limited",Management & Support Services,5,202211,31/01/2022,P6,9099883,-24233.03,24233.03,2050,Building Maintenance - Planned,2087,Estates Department (Previously Premises),869.02
Nottinghamshire Fire and Rescue Service,104167,"Graham Asset Management, John Graham Holdings Limited","Graham Asset Management, John Graham Holdings Limited",Management & Support Services,5,202211,31/01/2022,P6,9099883,-24233.03,24233.03,2050,Building Maintenance - Planned,2087,Estates Department (Previously Premises),1381.64
Nottinghamshire Fire and Rescue Service,104167,"Graham Asset Management, John Graham Holdings Limited","Graham Asset Management, John Graham Holdings Limited",Management & Support Services,5,202211,31/01/2022,P6,9099883,-24233.03,24233.03,2050,Building Maintenance - Planned,2087,Estates Department (Previously Premises),1454.27
Nottinghamshire Fire and Rescue Service,104167,"Graham Asset Management, John Graham Holdings Limited","Graham Asset Management, John Graham Holdings Limited",Management & Support Services,5,202211,31/01/2022,P6,9099883,-24233.03,24233.03,2050,Building Maintenance - Planned,2087,Estates Department (Previously Premises),2712.6
Nottinghamshire Fire and Rescue Service,104167,"Graham Asset Management, John Graham Holdings Limited","Graham Asset Management, John Graham Holdings Limited",Management & Support Services,5,202211,31/01/2022,P6,9099883,-24233.03,24233.03,2050,Building Maintenance - Planned,2087,Estates Department (Previously Premises),3567.55
Nottinghamshire Fire and Rescue Service,102655,Nottingham City Council (City Treasurer),Nottingham City Council (City Treasurer),Operational Responses,1,202211,31/01/2022,P6,9099775,-1968.17,1968.17,2101,Gas,1003,London Road,1640.14
Nottinghamshire Fire and Rescue Service,101179,Srcl Ltd,Srcl Ltd,Operational Responses,1,202211,31/01/2022,P6,9099665,-461.95,461.95,2106,Refuse / Trade Waste Collection,1001,Mansfield,52.12
Nottinghamshire Fire and Rescue Service,101179,Srcl Ltd,Srcl Ltd,Operational Responses,1,202211,31/01/2022,P6,9099665,-461.95,461.95,2106,Refuse / Trade Waste Collection,1003,London Road,52.12
Nottinghamshire Fire and Rescue Service,101179,Srcl Ltd,Srcl Ltd,Operational Responses,1,202211,31/01/2022,P6,9099665,-461.95,461.95,2106,Refuse / Trade Waste Collection,1008,Worksop,52.12
Nottinghamshire Fire and Rescue Service,101179,Srcl Ltd,Srcl Ltd,Operational Responses,1,202211,31/01/2022,P6,9099665,-461.95,461.95,2106,Refuse / Trade Waste Collection,1016,Newark,36.12
Nottinghamshire Fire and Rescue Service,101179,Srcl Ltd,Srcl Ltd,Operational Responses,1,202211,31/01/2022,P6,9099665,-461.95,461.95,2106,Refuse / Trade Waste Collection,1020,Stockhill,52.12
Nottinghamshire Fire and Rescue Service,101179,Srcl Ltd,Srcl Ltd,Operational Responses,1,202211,31/01/2022,P6,9099665,-461.95,461.95,2106,Refuse / Trade Waste Collection,1027,Carlton,52.12
Nottinghamshire Fire and Rescue Service,101179,Srcl Ltd,Srcl Ltd,Operational Responses,1,202211,31/01/2022,P6,9099665,-461.95,461.95,2106,Refuse / Trade Waste Collection,1029,Highfields Station,52.12
Nottinghamshire Fire and Rescue Service,101179,Srcl Ltd,Srcl Ltd,Management & Support Services,1,202211,31/01/2022,P6,9099665,-461.95,461.95,2106,Refuse / Trade Waste Collection,1035,Headquarters,36.12
Nottinghamshire Fire and Rescue Service,103280,Shred IT Limited,Shred IT Limited,Management & Support Services,5,202211,31/01/2022,P6,9099807,-1393.58,1393.58,2106,Refuse / Trade Waste Collection,2086,Procurement,1161.32
Nottinghamshire Fire and Rescue Service,103847,Veolia ES UK Limited,Veolia ES UK Limited,Management & Support Services,5,202211,31/01/2022,P6,9099836,-1742.02,1742.02,2106,Refuse / Trade Waste Collection,2086,Procurement,1451.68
Nottinghamshire Fire and Rescue Service,100557,NCC Sundry Debtors,NCC Sundry Debtors,Operational Responses,4,202211,31/01/2022,P6,9099672,-457.03,457.03,2205,Window Cleaning,1001,Mansfield,18.76
Nottinghamshire Fire and Rescue Service,100557,NCC Sundry Debtors,NCC Sundry Debtors,Operational Responses,4,202211,31/01/2022,P6,9099672,-457.03,457.03,2205,Window Cleaning,1002,Blidworth,11.26
Nottinghamshire Fire and Rescue Service,100557,NCC Sundry Debtors,NCC Sundry Debtors,Operational Responses,4,202211,31/01/2022,P6,9099672,-457.03,457.03,2205,Window Cleaning,1003,London Road,22.51
Nottinghamshire Fire and Rescue Service,100557,NCC Sundry Debtors,NCC Sundry Debtors,Operational Responses,4,202211,31/01/2022,P6,9099672,-457.03,457.03,2205,Window Cleaning,1005,Ashfield,11.26
Nottinghamshire Fire and Rescue Service,100557,NCC Sundry Debtors,NCC Sundry Debtors,Operational Responses,4,202211,31/01/2022,P6,9099672,-457.03,457.03,2205,Window Cleaning,1006,Edwinstowe,16.88
Nottinghamshire Fire and Rescue Service,100557,NCC Sundry Debtors,NCC Sundry Debtors,Operational Responses,4,202211,31/01/2022,P6,9099672,-457.03,457.03,2205,Window Cleaning,1007,Warsop,9.38
Nottinghamshire Fire and Rescue Service,100557,NCC Sundry Debtors,NCC Sundry Debtors,Operational Responses,4,202211,31/01/2022,P6,9099672,-457.03,457.03,2205,Window Cleaning,1008,Worksop,11.26
Nottinghamshire Fire and Rescue Service,100557,NCC Sundry Debtors,NCC Sundry Debtors,Operational Responses,4,202211,31/01/2022,P6,9099672,-457.03,457.03,2205,Window Cleaning,1010,Harworth,11.26
Nottinghamshire Fire and Rescue Service,100557,NCC Sundry Debtors,NCC Sundry Debtors,Operational Responses,4,202211,31/01/2022,P6,9099672,-457.03,457.03,2205,Window Cleaning,1011,Misterton,11.26
Nottinghamshire Fire and Rescue Service,100557,NCC Sundry Debtors,NCC Sundry Debtors,Operational Responses,4,202211,31/01/2022,P6,9099672,-457.03,457.03,2205,Window Cleaning,1012,Retford,15.01
Nottinghamshire Fire and Rescue Service,100557,NCC Sundry Debtors,NCC Sundry Debtors,Operational Responses,4,202211,31/01/2022,P6,9099672,-457.03,457.03,2205,Window Cleaning,1013,Tuxford,9.38
Nottinghamshire Fire and Rescue Service,100557,NCC Sundry Debtors,NCC Sundry Debtors,Operational Responses,4,202211,31/01/2022,P6,9099672,-457.03,457.03,2205,Window Cleaning,1014,Southwell,9.38
Nottinghamshire Fire and Rescue Service,100557,NCC Sundry Debtors,NCC Sundry Debtors,Operational Responses,4,202211,31/01/2022,P6,9099672,-457.03,457.03,2205,Window Cleaning,1015,Collingham,11.26
Nottinghamshire Fire and Rescue Service,100557,NCC Sundry Debtors,NCC Sundry Debtors,Operational Responses,4,202211,31/01/2022,P6,9099672,-457.03,457.03,2205,Window Cleaning,1016,Newark,11.26
Nottinghamshire Fire and Rescue Service,100557,NCC Sundry Debtors,NCC Sundry Debtors,Operational Responses,4,202211,31/01/2022,P6,9099672,-457.03,457.03,2205,Window Cleaning,1017,Bingham,11.26
Nottinghamshire Fire and Rescue Service,100557,NCC Sundry Debtors,NCC Sundry Debtors,Operational Responses,4,202211,31/01/2022,P6,9099672,-457.03,457.03,2205,Window Cleaning,1019,West Bridgford,13.13
Nottinghamshire Fire and Rescue Service,100557,NCC Sundry Debtors,NCC Sundry Debtors,Operational Responses,4,202211,31/01/2022,P6,9099672,-457.03,457.03,2205,Window Cleaning,1020,Stockhill,16.88
Nottinghamshire Fire and Rescue Service,100557,NCC Sundry Debtors,NCC Sundry Debtors,Operational Responses,4,202211,31/01/2022,P6,9099672,-457.03,457.03,2205,Window Cleaning,1023,Stapleford,11.26
Nottinghamshire Fire and Rescue Service,100557,NCC Sundry Debtors,NCC Sundry Debtors,Operational Responses,4,202211,31/01/2022,P6,9099672,-457.03,457.03,2205,Window Cleaning,1024,Eastwood,11.26
Nottinghamshire Fire and Rescue Service,100557,NCC Sundry Debtors,NCC Sundry Debtors,Operational Responses,4,202211,31/01/2022,P6,9099672,-457.03,457.03,2205,Window Cleaning,1026,Arnold,11.26
Nottinghamshire Fire and Rescue Service,100557,NCC Sundry Debtors,NCC Sundry Debtors,Operational Responses,4,202211,31/01/2022,P6,9099672,-457.03,457.03,2205,Window Cleaning,1027,Carlton,15.01
Nottinghamshire Fire and Rescue Service,100557,NCC Sundry Debtors,NCC Sundry Debtors,Operational Responses,4,202211,31/01/2022,P6,9099672,-457.03,457.03,2205,Window Cleaning,1028,East Leake,11.26
Nottinghamshire Fire and Rescue Service,100557,NCC Sundry Debtors,NCC Sundry Debtors,Operational Responses,4,202211,31/01/2022,P6,9099672,-457.03,457.03,2205,Window Cleaning,1029,Highfields Station,37.52
Nottinghamshire Fire and Rescue Service,100557,NCC Sundry Debtors,NCC Sundry Debtors,Management & Support Services,4,202211,31/01/2022,P6,9099672,-457.03,457.03,2205,Window Cleaning,1030,Service Development Centre,13.13
Nottinghamshire Fire and Rescue Service,100557,NCC Sundry Debtors,NCC Sundry Debtors,Management & Support Services,4,202211,31/01/2022,P6,9099672,-457.03,457.03,2205,Window Cleaning,1035,Headquarters,48.77
Nottinghamshire Fire and Rescue Service,103942,The Lodge Tyre Co. Limited,The Lodge Tyre Co. Limited,Management & Support Services,5,202211,31/01/2022,P6,9099616,-6320.63,6320.63,3202,Tyres,2084,Engineering,5267.2
Nottinghamshire Fire and Rescue Service,100321,Drivercheck Ltd,Drivercheck Ltd,Management & Support Services,1,202211,31/01/2022,P6,9099552,-692.16,692.16,3203,Motor Tax / Licenses,2084,Engineering,576.8
Nottinghamshire Fire and Rescue Service,103958,Lithium3 Technology Recruitment Limited,Lithium3 Technology Recruitment Limited,"Statutory Inspection, Certification & Enforcement",5,202211,31/01/2022,P6,9099618,-5040,5040,4100,Computer Hardware/ Software,2021,Fire Protection,4200
Nottinghamshire Fire and Rescue Service,100468,Specialised Canvas Group,Specialised Canvas Group,Management & Support Services,1,202211,31/01/2022,P6,9099525,-332.72,332.72,4534,Carriage and Packaging,9999,Default,17.23
Nottinghamshire Fire and Rescue Service,103570,Intramark Limited,Intramark Limited,Management & Support Services,5,202211,31/01/2022,P6,9099548,-1389,1389,4534,Carriage and Packaging,2086,Procurement,7.5
Nottinghamshire Fire and Rescue Service,102964,Trinity Occupational and Public Health Solutions Ltd,Trinity Occupational and Public Health Solutions Ltd,Management & Support Services,5,202211,31/01/2022,P6,9099584,-3000,3000,4552,Occupational Health Costs,2061,Occupational Health & Fitness,3000
Nottinghamshire Fire and Rescue Service,104207,Leap Design Limited,Leap Design Limited,Management & Support Services,1,202211,31/01/2022,P6,9099560,-636,636,4583,Marketing and Publicity,2051,Corporate Communications,530
Nottinghamshire Fire and Rescue Service,100468,Specialised Canvas Group,Specialised Canvas Group,Management & Support Services,1,202211,31/01/2022,P6,9099525,-332.72,332.72,B314,Stock ,9999,Default,260.03
Nottinghamshire Fire and Rescue Service,103570,Intramark Limited,Intramark Limited,Management & Support Services,5,202211,31/01/2022,P6,9099548,-1389,1389,B314,Stock ,9999,Default,1150
Nottinghamshire Fire and Rescue Service,101100,Angloco Limited,Angloco Limited,Management & Support Services,1,202211,29/01/2022,P6,9099541,-5880,5880,1801,Training,2059,Corporate Training,4900
Nottinghamshire Fire and Rescue Service,103045,Mitchell Diesel Limited,Mitchell Diesel Limited,Management & Support Services,5,202211,28/01/2022,P6,9099553,-3835.99,3835.99,3101,Fleet Modification,2084,Engineering,3196.66
Nottinghamshire Fire and Rescue Service,103981,Joseph Gleave and Son Limited -Joseph Gleave and Son (Holdings) Limited,Joseph Gleave and Son Limited -Joseph Gleave and Son (Holdings) Limited,Management & Support Services,5,202211,28/01/2022,P6,9099562,-1101.6,1101.6,4400,Clothing and Uniform,2014,On Call / Rostering Team,918
Nottinghamshire Fire and Rescue Service,104077,Healthwork,Healthwork,Management & Support Services,5,202211,28/01/2022,P6,9099585,-576,576,4552,Occupational Health Costs,2061,Occupational Health & Fitness,480
Nottinghamshire Fire and Rescue Service,103453,RKW Ltd,RKW Ltd,Management & Support Services,5,202211,28/01/2022,P6,9099519,-477.6,477.6,B314,Stock ,9999,Default,398
Nottinghamshire Fire and Rescue Service,100114,Goliath Footwear Ltd,Goliath Footwear Ltd,Management & Support Services,1,202211,28/01/2022,P6,9099524,-376.2,376.2,B314,Stock ,9999,Default,313.5
Nottinghamshire Fire and Rescue Service,101190,Lyon Equipment Limited,Lyon Equipment Limited,Management & Support Services,1,202211,28/01/2022,P6,9099532,-466.74,466.74,B314,Stock ,9999,Default,388.95
Nottinghamshire Fire and Rescue Service,103766,CERTAS,CERTAS,Operational Responses,5,202211,27/01/2022,P6,9099642,-9883.24,9883.24,3200,Fuel - Vehicle,1020,Stockhill,8236.03
Nottinghamshire Fire and Rescue Service,103855,Lavat Consulting Ltd T/A PS TAX,Lavat Consulting Ltd T/A PS TAX,Management & Support Services,5,202211,27/01/2022,P6,9099557,-2478,2478,4554,Consultancy Fees - Non Estates Related,2081,Finance,2065
Nottinghamshire Fire and Rescue Service,103242,New Balance Athletic Shoes (UK) Limited,New Balance Athletic Shoes (UK) Limited,Management & Support Services,5,202211,27/01/2022,P6,9099651,-304.03,304.03,B314,Stock ,9999,Default,253.36
Nottinghamshire Fire and Rescue Service,101001,Express Recruitment Ltd,Express Recruitment Ltd,Management & Support Services,1,202211,26/01/2022,P6,9099543,-1447.44,1447.44,1005,Admin Agency Staff,2058,HR Support,603.1
Nottinghamshire Fire and Rescue Service,101001,Express Recruitment Ltd,Express Recruitment Ltd,Management & Support Services,1,202211,26/01/2022,P6,9099543,-1447.44,1447.44,1005,Admin Agency Staff,2086,Procurement,603.1
Nottinghamshire Fire and Rescue Service,102951,Logistics UK,Logistics UK,Management & Support Services,5,202211,26/01/2022,P6,9099593,-402.91,402.91,3103,Fleet Maintenance - Unplanned,2084,Engineering,335.76
Nottinghamshire Fire and Rescue Service,102864,William Sugden & sons Limited,William Sugden & sons Limited,Management & Support Services,5,202211,26/01/2022,P6,9099480,-329.4,329.4,B314,Stock ,9999,Default,274.5
Nottinghamshire Fire and Rescue Service,102864,William Sugden & sons Limited,William Sugden & sons Limited,Management & Support Services,5,202211,26/01/2022,P6,9099481,-601.8,601.8,B314,Stock ,9999,Default,501.5
Nottinghamshire Fire and Rescue Service,103242,New Balance Athletic Shoes (UK) Limited,New Balance Athletic Shoes (UK) Limited,Management & Support Services,5,202211,26/01/2022,P6,9099656,275.04,-275.04,B314,Stock ,9999,Default,-229.2
Nottinghamshire Fire and Rescue Service,101712,Browne Jacobson LLP,Browne Jacobson LLP,Management & Support Services,1,202211,25/01/2022,P6,9099650,-1020,1020,7002,Legal Services,2087,Estates Department (Previously Premises),274
Nottinghamshire Fire and Rescue Service,101712,Browne Jacobson LLP,Browne Jacobson LLP,Management & Support Services,1,202211,25/01/2022,P6,9099650,-1020,1020,7002,Legal Services,2087,Estates Department (Previously Premises),496
Nottinghamshire Fire and Rescue Service,101712,Browne Jacobson LLP,Browne Jacobson LLP,Management & Support Services,1,202211,25/01/2022,P6,9099650,-1020,1020,C157,Professional Fees - Legal,4102,Strategic New Build Projects,80
Nottinghamshire Fire and Rescue Service,103371,Nottinghamshire Healthcare NHS Trust,Nottinghamshire Healthcare NHS Trust,Management & Support Services,5,202211,24/01/2022,P6,9099556,-4195.72,4195.72,1005,Admin Agency Staff,2068,Prevention,4195.72
Nottinghamshire Fire and Rescue Service,102051,Johnsons Business Moves,Johnsons Business Moves,Management & Support Services,1,202211,24/01/2022,P6,9099926,-432,432,C107,Business Moves,4102,Strategic New Build Projects,360
Nottinghamshire Fire and Rescue Service,103866,Richardson Associates (UK) Limited,Richardson Associates (UK) Limited,Management & Support Services,5,202211,19/01/2022,P6,9099542,-450,450,1801,Training,2054,Equalities Team,375
Nottinghamshire Fire and Rescue Service,103820,VIA East Midlands Ltd,VIA East Midlands Ltd,Management & Support Services,5,202211,19/01/2022,P6,9099510,-37177.2,37177.2,3103,Fleet Maintenance - Unplanned,2084,Engineering,30981
Nottinghamshire Fire and Rescue Service,103820,VIA East Midlands Ltd,VIA East Midlands Ltd,Management & Support Services,5,202211,19/01/2022,P6,9099586,-5018.22,5018.22,3104,Fleet - Accident Repairs,2084,Engineering,4181.85
Nottinghamshire Fire and Rescue Service,103603,Southwell Cathedral Chapter,Southwell Cathedral Chapter,Management & Support Services,5,202211,18/01/2022,P6,9099877,-302.07,302.07,4562,Hospitality,2050,Corporate Support,302.07
Nottinghamshire Fire and Rescue Service,103887,PageOne Communications Limited - Part Of Capita plc,PageOne Communications Limited - Part Of Capita plc,Management & Support Services,5,202211,17/01/2022,P6,9099517,-1222.8,1222.8,4303,Pagers,2097,ICT Service Operations,200
Nottinghamshire Fire and Rescue Service,103887,PageOne Communications Limited - Part Of Capita plc,PageOne Communications Limited - Part Of Capita plc,Management & Support Services,5,202211,17/01/2022,P6,9099517,-1222.8,1222.8,4303,Pagers,2097,ICT Service Operations,819
Nottinghamshire Fire and Rescue Service,103678,Fitness Warehouse Limited t/a Gym Gear,Fitness Warehouse Limited t/a Gym Gear,Operational Responses,5,202211,14/01/2022,P6,9099957,-257.57,257.57,4511,Fitness Equipment Maintenance,1020,Stockhill,214.64
Nottinghamshire Fire and Rescue Service,103678,Fitness Warehouse Limited t/a Gym Gear,Fitness Warehouse Limited t/a Gym Gear,Operational Responses,5,202211,14/01/2022,P6,9099958,-414,414,4511,Fitness Equipment Maintenance,1006,Edwinstowe,345
Nottinghamshire Fire and Rescue Service,104098,Total Gas & Power Limited,Total Gas & Power Limited,Operational Responses,5,202211,13/01/2022,P6,9099889,-1646.02,1646.02,2101,Gas,1020,Stockhill,1371.68
Nottinghamshire Fire and Rescue Service,100202,Enterprise Rent-A-Car,Enterprise Rent-A-Car,Management & Support Services,1,202211,13/01/2022,P6,9099599,-342.05,342.05,3400,Hire of Fleet Vehicles,2084,Engineering,285.04
Nottinghamshire Fire and Rescue Service,100202,Enterprise Rent-A-Car,Enterprise Rent-A-Car,Management & Support Services,1,202211,13/01/2022,P6,9099600,-342.05,342.05,3400,Hire of Fleet Vehicles,2084,Engineering,285.04
Nottinghamshire Fire and Rescue Service,100202,Enterprise Rent-A-Car,Enterprise Rent-A-Car,Management & Support Services,1,202211,13/01/2022,P6,9099601,-342.05,342.05,3400,Hire of Fleet Vehicles,2084,Engineering,285.04
Nottinghamshire Fire and Rescue Service,100202,Enterprise Rent-A-Car,Enterprise Rent-A-Car,Management & Support Services,1,202211,13/01/2022,P6,9099602,-342.05,342.05,3400,Hire of Fleet Vehicles,2084,Engineering,285.04
Nottinghamshire Fire and Rescue Service,100202,Enterprise Rent-A-Car,Enterprise Rent-A-Car,Management & Support Services,1,202211,13/01/2022,P6,9099603,-342.05,342.05,3400,Hire of Fleet Vehicles,2084,Engineering,285.04
Nottinghamshire Fire and Rescue Service,102376,Bristol Uniforms Limited,Bristol Uniforms Limited,Management & Support Services,1,202211,13/01/2022,P6,9099485,-622.18,622.18,B314,Stock ,9999,Default,518.48
Nottinghamshire Fire and Rescue Service,102103,Ricoh Uk Ltd,Ricoh Uk Ltd,Management & Support Services,1,202211,11/01/2022,P6,9099516,-11117.97,11117.97,4105,Photocopier,2096,ICT Service Transformation,9264.97
Nottinghamshire Fire and Rescue Service,103849,Vision Support Services Ltd,Vision Support Services Ltd,Operational Responses,5,202211,11/01/2022,P6,9099488,-505.26,505.26,4600,Community Safety Delivery Consumables,1001,Mansfield,421.05
Nottinghamshire Fire and Rescue Service,104199,ITGL Limited,ITGL Limited,Management & Support Services,5,202211,11/01/2022,P6,9099726,-54026.57,54026.57,C200,Hardware,4300,ICT Capital Programme,45022.15
Nottinghamshire Fire and Rescue Service,102744,EDF Energy,EDF Energy,Operational Responses,1,202211,10/01/2022,P6,9099754,-883.67,883.67,2100,Electricity,1011,Misterton,2.53
Nottinghamshire Fire and Rescue Service,102744,EDF Energy,EDF Energy,Operational Responses,1,202211,10/01/2022,P6,9099754,-883.67,883.67,2100,Electricity,1011,Misterton,734.28
Nottinghamshire Fire and Rescue Service,103793,EDF Customer Field Services,EDF Customer Field Services,Operational Responses,5,202211,08/01/2022,P6,9099745,-518.4,518.4,2100,Electricity,1027,Carlton,432
Nottinghamshire Fire and Rescue Service,102744,EDF Energy,EDF Energy,Operational Responses,1,202211,07/01/2022,P6,9099612,-265.01,265.01,2100,Electricity,2078,Mansfield Fire Station Museum,0.74
Nottinghamshire Fire and Rescue Service,102744,EDF Energy,EDF Energy,Operational Responses,1,202211,07/01/2022,P6,9099612,-265.01,265.01,2100,Electricity,2078,Mansfield Fire Station Museum,220.22
Nottinghamshire Fire and Rescue Service,102744,EDF Energy,EDF Energy,Operational Responses,1,202211,07/01/2022,P6,9099751,-1070.93,1070.93,2100,Electricity,1026,Arnold,7.88
Nottinghamshire Fire and Rescue Service,102744,EDF Energy,EDF Energy,Operational Responses,1,202211,07/01/2022,P6,9099751,-1070.93,1070.93,2100,Electricity,1026,Arnold,885.87
Nottinghamshire Fire and Rescue Service,102586,Cfoa (Services) Ltd,Cfoa (Services) Ltd,Operational Responses,1,202211,07/01/2022,P6,9099766,-1824.07,1824.07,2100,Electricity,1001,Mansfield,7.12
Nottinghamshire Fire and Rescue Service,102586,Cfoa (Services) Ltd,Cfoa (Services) Ltd,Operational Responses,1,202211,07/01/2022,P6,9099766,-1824.07,1824.07,2100,Electricity,1001,Mansfield,1514.13
Nottinghamshire Fire and Rescue Service,102744,EDF Energy,EDF Energy,Operational Responses,1,202211,07/01/2022,P6,9099698,1388.08,-1388.08,2100,Electricity,1026,Arnold,-1150.48
Nottinghamshire Fire and Rescue Service,102744,EDF Energy,EDF Energy,Operational Responses,1,202211,07/01/2022,P6,9099698,1388.08,-1388.08,2100,Electricity,1026,Arnold,-7.51
Nottinghamshire Fire and Rescue Service,102744,EDF Energy,EDF Energy,Operational Responses,1,202211,07/01/2022,P6,9099891,1628.49,-1628.49,2100,Electricity,1008,Worksop,-1357.41
Nottinghamshire Fire and Rescue Service,102744,EDF Energy,EDF Energy,Operational Responses,1,202211,06/01/2022,P6,9099748,-2152.61,2152.61,2100,Electricity,1006,Edwinstowe,9.57
Nottinghamshire Fire and Rescue Service,102744,EDF Energy,EDF Energy,Operational Responses,1,202211,06/01/2022,P6,9099748,-2152.61,2152.61,2100,Electricity,1006,Edwinstowe,1785.87
Nottinghamshire Fire and Rescue Service,102744,EDF Energy,EDF Energy,Operational Responses,1,202211,06/01/2022,P6,9099750,-4316.62,4316.62,2100,Electricity,1005,Ashfield,22.76
Nottinghamshire Fire and Rescue Service,102744,EDF Energy,EDF Energy,Operational Responses,1,202211,06/01/2022,P6,9099750,-4316.62,4316.62,2100,Electricity,1005,Ashfield,3578.22
Nottinghamshire Fire and Rescue Service,102744,EDF Energy,EDF Energy,Operational Responses,1,202211,06/01/2022,P6,9099755,-1315.08,1315.08,2100,Electricity,1010,Harworth,9.01
Nottinghamshire Fire and Rescue Service,102744,EDF Energy,EDF Energy,Operational Responses,1,202211,06/01/2022,P6,9099755,-1315.08,1315.08,2100,Electricity,1010,Harworth,1088.39
Nottinghamshire Fire and Rescue Service,102744,EDF Energy,EDF Energy,Operational Responses,1,202211,06/01/2022,P6,9099756,-1153.39,1153.39,2100,Electricity,1026,Arnold,8.36
Nottinghamshire Fire and Rescue Service,102744,EDF Energy,EDF Energy,Operational Responses,1,202211,06/01/2022,P6,9099756,-1153.39,1153.39,2100,Electricity,1026,Arnold,954.19
Nottinghamshire Fire and Rescue Service,102744,EDF Energy,EDF Energy,Operational Responses,1,202211,06/01/2022,P6,9099765,-271.79,271.79,2100,Electricity,1001,Mansfield,2.79
Nottinghamshire Fire and Rescue Service,102744,EDF Energy,EDF Energy,Operational Responses,1,202211,06/01/2022,P6,9099765,-271.79,271.79,2100,Electricity,1001,Mansfield,224.17
Nottinghamshire Fire and Rescue Service,104076,Sonovate Lithium3 Technology Contractor Services Invoices,Sonovate Lithium3 Technology Contractor Services Invoices,"Statutory Inspection, Certification & Enforcement",5,202211,05/01/2022,P6,9099497,-2880,2880,4100,Computer Hardware/ Software,2021,Fire Protection,2400
Nottinghamshire Fire and Rescue Service,104076,Sonovate Lithium3 Technology Contractor Services Invoices,Sonovate Lithium3 Technology Contractor Services Invoices,"Statutory Inspection, Certification & Enforcement",5,202211,05/01/2022,P6,9099498,-3360,3360,4100,Computer Hardware/ Software,2021,Fire Protection,2800
Nottinghamshire Fire and Rescue Service,102744,EDF Energy,EDF Energy,Operational Responses,1,202211,04/01/2022,P6,9099699,-7350.3,7350.3,2100,Electricity,1019,West Bridgford,23.31
Nottinghamshire Fire and Rescue Service,102744,EDF Energy,EDF Energy,Operational Responses,1,202211,04/01/2022,P6,9099699,-7350.3,7350.3,2100,Electricity,1019,West Bridgford,6105.83
Nottinghamshire Fire and Rescue Service,102744,EDF Energy,EDF Energy,Operational Responses,1,202211,04/01/2022,P6,9099746,-308.8,308.8,2100,Electricity,1015,Collingham,257.85
Nottinghamshire Fire and Rescue Service,102744,EDF Energy,EDF Energy,Operational Responses,1,202211,04/01/2022,P6,9099749,-833.98,833.98,2100,Electricity,1017,Bingham,3.48
Nottinghamshire Fire and Rescue Service,102744,EDF Energy,EDF Energy,Operational Responses,1,202211,04/01/2022,P6,9099749,-833.98,833.98,2100,Electricity,1017,Bingham,692.08
Nottinghamshire Fire and Rescue Service,102744,EDF Energy,EDF Energy,Operational Responses,1,202211,04/01/2022,P6,9099762,-282.1,282.1,2100,Electricity,1014,Southwell,2.06
Nottinghamshire Fire and Rescue Service,102744,EDF Energy,EDF Energy,Operational Responses,1,202211,04/01/2022,P6,9099762,-282.1,282.1,2100,Electricity,1014,Southwell,233.37
Nottinghamshire Fire and Rescue Service,102744,EDF Energy,EDF Energy,Operational Responses,1,202211,04/01/2022,P6,9099764,-3098.72,3098.72,2100,Electricity,1023,Stapleford,8.51
Nottinghamshire Fire and Rescue Service,102744,EDF Energy,EDF Energy,Operational Responses,1,202211,04/01/2022,P6,9099764,-3098.72,3098.72,2100,Electricity,1023,Stapleford,2575.18
Nottinghamshire Fire and Rescue Service,104007,Castle Water Limited,Castle Water Limited,Operational Responses,5,202211,04/01/2022,P6,9099678,-367.23,367.23,2103,Water Rates,1019,West Bridgford,49.17
Nottinghamshire Fire and Rescue Service,104007,Castle Water Limited,Castle Water Limited,Operational Responses,5,202211,04/01/2022,P6,9099678,-367.23,367.23,2103,Water Rates,1019,West Bridgford,194.23
Nottinghamshire Fire and Rescue Service,104007,Castle Water Limited,Castle Water Limited,Management & Support Services,5,202211,04/01/2022,P6,9099681,-288.49,288.49,2103,Water Rates,1030,Service Development Centre,42.24
Nottinghamshire Fire and Rescue Service,104007,Castle Water Limited,Castle Water Limited,Management & Support Services,5,202211,04/01/2022,P6,9099681,-288.49,288.49,2103,Water Rates,1030,Service Development Centre,150.38
Nottinghamshire Fire and Rescue Service,104007,Castle Water Limited,Castle Water Limited,Operational Responses,5,202211,04/01/2022,P6,9099687,-328.41,328.41,2103,Water Rates,1029,Highfields Station,0.09
Nottinghamshire Fire and Rescue Service,104007,Castle Water Limited,Castle Water Limited,Operational Responses,5,202211,04/01/2022,P6,9099687,-328.41,328.41,2103,Water Rates,1029,Highfields Station,200.5
Nottinghamshire Fire and Rescue Service,104007,Castle Water Limited,Castle Water Limited,Management & Support Services,5,202211,04/01/2022,P6,9099688,-441.73,441.73,2103,Water Rates,1035,Headquarters,244.37
Nottinghamshire Fire and Rescue Service,104007,Castle Water Limited,Castle Water Limited,Operational Responses,5,202211,04/01/2022,P6,9099700,-1667.28,1667.28,2103,Water Rates,1017,Bingham,1018.18
Nottinghamshire Fire and Rescue Service,104007,Castle Water Limited,Castle Water Limited,Operational Responses,5,202211,04/01/2022,P6,9099702,-325.76,325.76,2103,Water Rates,1026,Arnold,198.94
Nottinghamshire Fire and Rescue Service,104007,Castle Water Limited,Castle Water Limited,Operational Responses,5,202211,04/01/2022,P6,9099678,-367.23,367.23,2104,Sewerage and Environmental,1019,West Bridgford,123.83
Nottinghamshire Fire and Rescue Service,104007,Castle Water Limited,Castle Water Limited,Management & Support Services,5,202211,04/01/2022,P6,9099681,-288.49,288.49,2104,Sewerage and Environmental,1030,Service Development Centre,95.87
Nottinghamshire Fire and Rescue Service,104007,Castle Water Limited,Castle Water Limited,Operational Responses,5,202211,04/01/2022,P6,9099687,-328.41,328.41,2104,Sewerage and Environmental,1029,Highfields Station,127.82
Nottinghamshire Fire and Rescue Service,104007,Castle Water Limited,Castle Water Limited,Management & Support Services,5,202211,04/01/2022,P6,9099688,-441.73,441.73,2104,Sewerage and Environmental,1035,Headquarters,41.57
Nottinghamshire Fire and Rescue Service,104007,Castle Water Limited,Castle Water Limited,Management & Support Services,5,202211,04/01/2022,P6,9099688,-441.73,441.73,2104,Sewerage and Environmental,1035,Headquarters,155.79
Nottinghamshire Fire and Rescue Service,104007,Castle Water Limited,Castle Water Limited,Operational Responses,5,202211,04/01/2022,P6,9099700,-1667.28,1667.28,2104,Sewerage and Environmental,1017,Bingham,649.1
Nottinghamshire Fire and Rescue Service,104007,Castle Water Limited,Castle Water Limited,Operational Responses,5,202211,04/01/2022,P6,9099702,-325.76,325.76,2104,Sewerage and Environmental,1026,Arnold,126.82
Nottinghamshire Fire and Rescue Service,100557,NCC Sundry Debtors,NCC Sundry Debtors,Operational Responses,4,202211,01/01/2022,P6,9099676,-3249.88,3249.88,2204,Contract Cleaning,1007,Warsop,161.16
Nottinghamshire Fire and Rescue Service,100557,NCC Sundry Debtors,NCC Sundry Debtors,Operational Responses,4,202211,01/01/2022,P6,9099676,-3249.88,3249.88,2204,Contract Cleaning,1010,Harworth,322.41
Nottinghamshire Fire and Rescue Service,100557,NCC Sundry Debtors,NCC Sundry Debtors,Operational Responses,4,202211,01/01/2022,P6,9099676,-3249.88,3249.88,2204,Contract Cleaning,1011,Misterton,257.94
Nottinghamshire Fire and Rescue Service,100557,NCC Sundry Debtors,NCC Sundry Debtors,Operational Responses,4,202211,01/01/2022,P6,9099676,-3249.88,3249.88,2204,Contract Cleaning,1013,Tuxford,193.37
Nottinghamshire Fire and Rescue Service,100557,NCC Sundry Debtors,NCC Sundry Debtors,Operational Responses,4,202211,01/01/2022,P6,9099676,-3249.88,3249.88,2204,Contract Cleaning,1014,Southwell,290.2
Nottinghamshire Fire and Rescue Service,100557,NCC Sundry Debtors,NCC Sundry Debtors,Operational Responses,4,202211,01/01/2022,P6,9099676,-3249.88,3249.88,2204,Contract Cleaning,1015,Collingham,290.2
Nottinghamshire Fire and Rescue Service,100557,NCC Sundry Debtors,NCC Sundry Debtors,Operational Responses,4,202211,01/01/2022,P6,9099676,-3249.88,3249.88,2204,Contract Cleaning,1017,Bingham,193.56
Nottinghamshire Fire and Rescue Service,100557,NCC Sundry Debtors,NCC Sundry Debtors,Operational Responses,4,202211,01/01/2022,P6,9099676,-3249.88,3249.88,2204,Contract Cleaning,1023,Stapleford,483.61
Nottinghamshire Fire and Rescue Service,100557,NCC Sundry Debtors,NCC Sundry Debtors,Operational Responses,4,202211,01/01/2022,P6,9099676,-3249.88,3249.88,2204,Contract Cleaning,1024,Eastwood,322.36
Nottinghamshire Fire and Rescue Service,100557,NCC Sundry Debtors,NCC Sundry Debtors,Operational Responses,4,202211,01/01/2022,P6,9099676,-3249.88,3249.88,2204,Contract Cleaning,1028,East Leake,193.42
Nottinghamshire Fire and Rescue Service,100557,NCC Sundry Debtors,NCC Sundry Debtors,Operational Responses,4,202211,01/01/2022,P6,9099813,-556.34,556.34,2204,Contract Cleaning,1001,Mansfield,15.01
Nottinghamshire Fire and Rescue Service,100557,NCC Sundry Debtors,NCC Sundry Debtors,Operational Responses,4,202211,01/01/2022,P6,9099813,-556.34,556.34,2204,Contract Cleaning,1002,Blidworth,11.26
Nottinghamshire Fire and Rescue Service,100557,NCC Sundry Debtors,NCC Sundry Debtors,Operational Responses,4,202211,01/01/2022,P6,9099813,-556.34,556.34,2204,Contract Cleaning,1003,London Road,14.07
Nottinghamshire Fire and Rescue Service,100557,NCC Sundry Debtors,NCC Sundry Debtors,Operational Responses,4,202211,01/01/2022,P6,9099813,-556.34,556.34,2204,Contract Cleaning,1005,Ashfield,15.01
Nottinghamshire Fire and Rescue Service,100557,NCC Sundry Debtors,NCC Sundry Debtors,Operational Responses,4,202211,01/01/2022,P6,9099813,-556.34,556.34,2204,Contract Cleaning,1006,Edwinstowe,11.26
Nottinghamshire Fire and Rescue Service,100557,NCC Sundry Debtors,NCC Sundry Debtors,Operational Responses,4,202211,01/01/2022,P6,9099813,-556.34,556.34,2204,Contract Cleaning,1007,Warsop,11.26
Nottinghamshire Fire and Rescue Service,100557,NCC Sundry Debtors,NCC Sundry Debtors,Operational Responses,4,202211,01/01/2022,P6,9099813,-556.34,556.34,2204,Contract Cleaning,1008,Worksop,15.01
Nottinghamshire Fire and Rescue Service,100557,NCC Sundry Debtors,NCC Sundry Debtors,Operational Responses,4,202211,01/01/2022,P6,9099813,-556.34,556.34,2204,Contract Cleaning,1010,Harworth,11.26
Nottinghamshire Fire and Rescue Service,100557,NCC Sundry Debtors,NCC Sundry Debtors,Operational Responses,4,202211,01/01/2022,P6,9099813,-556.34,556.34,2204,Contract Cleaning,1011,Misterton,11.26
Nottinghamshire Fire and Rescue Service,100557,NCC Sundry Debtors,NCC Sundry Debtors,Operational Responses,4,202211,01/01/2022,P6,9099813,-556.34,556.34,2204,Contract Cleaning,1012,Retford,11.26
Nottinghamshire Fire and Rescue Service,100557,NCC Sundry Debtors,NCC Sundry Debtors,Operational Responses,4,202211,01/01/2022,P6,9099813,-556.34,556.34,2204,Contract Cleaning,1013,Tuxford,11.26
Nottinghamshire Fire and Rescue Service,100557,NCC Sundry Debtors,NCC Sundry Debtors,Operational Responses,4,202211,01/01/2022,P6,9099813,-556.34,556.34,2204,Contract Cleaning,1014,Southwell,11.26
Nottinghamshire Fire and Rescue Service,100557,NCC Sundry Debtors,NCC Sundry Debtors,Operational Responses,4,202211,01/01/2022,P6,9099813,-556.34,556.34,2204,Contract Cleaning,1015,Collingham,11.26
Nottinghamshire Fire and Rescue Service,100557,NCC Sundry Debtors,NCC Sundry Debtors,Operational Responses,4,202211,01/01/2022,P6,9099813,-556.34,556.34,2204,Contract Cleaning,1016,Newark,15.01
Nottinghamshire Fire and Rescue Service,100557,NCC Sundry Debtors,NCC Sundry Debtors,Operational Responses,4,202211,01/01/2022,P6,9099813,-556.34,556.34,2204,Contract Cleaning,1017,Bingham,11.26
Nottinghamshire Fire and Rescue Service,100557,NCC Sundry Debtors,NCC Sundry Debtors,Operational Responses,4,202211,01/01/2022,P6,9099813,-556.34,556.34,2204,Contract Cleaning,1019,West Bridgford,15.01
Nottinghamshire Fire and Rescue Service,100557,NCC Sundry Debtors,NCC Sundry Debtors,Operational Responses,4,202211,01/01/2022,P6,9099813,-556.34,556.34,2204,Contract Cleaning,1020,Stockhill,15.01
Nottinghamshire Fire and Rescue Service,100557,NCC Sundry Debtors,NCC Sundry Debtors,Operational Responses,4,202211,01/01/2022,P6,9099813,-556.34,556.34,2204,Contract Cleaning,1023,Stapleford,11.26
Nottinghamshire Fire and Rescue Service,100557,NCC Sundry Debtors,NCC Sundry Debtors,Operational Responses,4,202211,01/01/2022,P6,9099813,-556.34,556.34,2204,Contract Cleaning,1024,Eastwood,11.26
Nottinghamshire Fire and Rescue Service,100557,NCC Sundry Debtors,NCC Sundry Debtors,Operational Responses,4,202211,01/01/2022,P6,9099813,-556.34,556.34,2204,Contract Cleaning,1026,Arnold,15.01
Nottinghamshire Fire and Rescue Service,100557,NCC Sundry Debtors,NCC Sundry Debtors,Operational Responses,4,202211,01/01/2022,P6,9099813,-556.34,556.34,2204,Contract Cleaning,1027,Carlton,15.01
Nottinghamshire Fire and Rescue Service,100557,NCC Sundry Debtors,NCC Sundry Debtors,Operational Responses,4,202211,01/01/2022,P6,9099813,-556.34,556.34,2204,Contract Cleaning,1028,East Leake,11.26
Nottinghamshire Fire and Rescue Service,100557,NCC Sundry Debtors,NCC Sundry Debtors,Operational Responses,4,202211,01/01/2022,P6,9099813,-556.34,556.34,2204,Contract Cleaning,1029,Highfields Station,15.01
Nottinghamshire Fire and Rescue Service,100557,NCC Sundry Debtors,NCC Sundry Debtors,Management & Support Services,4,202211,01/01/2022,P6,9099813,-556.34,556.34,2204,Contract Cleaning,1030,Service Development Centre,33.77
Nottinghamshire Fire and Rescue Service,100557,NCC Sundry Debtors,NCC Sundry Debtors,Management & Support Services,4,202211,01/01/2022,P6,9099813,-556.34,556.34,2204,Contract Cleaning,1035,Headquarters,134.31
Nottinghamshire Fire and Rescue Service,103214,Excelerate Technology Limited,Excelerate Technology Limited,Management & Support Services,5,202211,01/01/2022,P6,9099609,-19645.2,19645.2,4203,Communication Licences and Rentals,2095,ICT Digital Transformation,16371
Nottinghamshire Fire and Rescue Service,103092,Daisy Corporate Services Trading Limited,Daisy Corporate Services Trading Limited,Management & Support Services,1,202211,01/01/2022,P6,9099677,-1265.62,1265.62,4301,Phones - Landline,2096,ICT Service Transformation,1054.68
Nottinghamshire Fire and Rescue Service,101179,Srcl Ltd,Srcl Ltd,Operational Responses,1,202211,31/12/2021,P6,9099716,-341.81,341.81,2106,Refuse / Trade Waste Collection,1003,London Road,36.12
Nottinghamshire Fire and Rescue Service,101179,Srcl Ltd,Srcl Ltd,Operational Responses,1,202211,31/12/2021,P6,9099716,-341.81,341.81,2106,Refuse / Trade Waste Collection,1005,Ashfield,36.12
Nottinghamshire Fire and Rescue Service,101179,Srcl Ltd,Srcl Ltd,Operational Responses,1,202211,31/12/2021,P6,9099716,-341.81,341.81,2106,Refuse / Trade Waste Collection,1012,Retford,36.12
Nottinghamshire Fire and Rescue Service,101179,Srcl Ltd,Srcl Ltd,Operational Responses,1,202211,31/12/2021,P6,9099716,-341.81,341.81,2106,Refuse / Trade Waste Collection,1016,Newark,36.12
Nottinghamshire Fire and Rescue Service,101179,Srcl Ltd,Srcl Ltd,Operational Responses,1,202211,31/12/2021,P6,9099716,-341.81,341.81,2106,Refuse / Trade Waste Collection,1020,Stockhill,52.12
Nottinghamshire Fire and Rescue Service,101179,Srcl Ltd,Srcl Ltd,Operational Responses,1,202211,31/12/2021,P6,9099716,-341.81,341.81,2106,Refuse / Trade Waste Collection,1026,Arnold,52.12
Nottinghamshire Fire and Rescue Service,101179,Srcl Ltd,Srcl Ltd,Management & Support Services,1,202211,31/12/2021,P6,9099716,-341.81,341.81,2106,Refuse / Trade Waste Collection,2061,Occupational Health & Fitness,36.12
Nottinghamshire Fire and Rescue Service,103820,VIA East Midlands Ltd,VIA East Midlands Ltd,Management & Support Services,5,202211,24/12/2021,P6,9099588,-16207.17,16207.17,3100,Fleet Maintenance - Planned,2084,Engineering,13583.6
Nottinghamshire Fire and Rescue Service,103820,VIA East Midlands Ltd,VIA East Midlands Ltd,Management & Support Services,5,202211,24/12/2021,P6,9099587,-43975.31,43975.31,3103,Fleet Maintenance - Unplanned,2084,Engineering,36646.09
Nottinghamshire Fire and Rescue Service,100202,Enterprise Rent-A-Car,Enterprise Rent-A-Car,Management & Support Services,1,202211,22/12/2021,P6,9099594,-342.05,342.05,3400,Hire of Fleet Vehicles,2084,Engineering,285.04
Nottinghamshire Fire and Rescue Service,100202,Enterprise Rent-A-Car,Enterprise Rent-A-Car,Management & Support Services,1,202211,22/12/2021,P6,9099595,-342.05,342.05,3400,Hire of Fleet Vehicles,2084,Engineering,285.04
Nottinghamshire Fire and Rescue Service,100202,Enterprise Rent-A-Car,Enterprise Rent-A-Car,Management & Support Services,1,202211,22/12/2021,P6,9099596,-342.05,342.05,3400,Hire of Fleet Vehicles,2084,Engineering,285.04
Nottinghamshire Fire and Rescue Service,100202,Enterprise Rent-A-Car,Enterprise Rent-A-Car,Management & Support Services,1,202211,22/12/2021,P6,9099597,-342.05,342.05,3400,Hire of Fleet Vehicles,2084,Engineering,285.04
Nottinghamshire Fire and Rescue Service,100202,Enterprise Rent-A-Car,Enterprise Rent-A-Car,Management & Support Services,1,202211,22/12/2021,P6,9099598,-342.05,342.05,3400,Hire of Fleet Vehicles,2084,Engineering,285.04
Nottinghamshire Fire and Rescue Service,104076,Sonovate Lithium3 Technology Contractor Services Invoices,Sonovate Lithium3 Technology Contractor Services Invoices,"Statutory Inspection, Certification & Enforcement",5,202211,22/12/2021,P6,9099494,-8400,8400,4100,Computer Hardware/ Software,2021,Fire Protection,7000
Nottinghamshire Fire and Rescue Service,104076,Sonovate Lithium3 Technology Contractor Services Invoices,Sonovate Lithium3 Technology Contractor Services Invoices,"Statutory Inspection, Certification & Enforcement",5,202211,22/12/2021,P6,9099496,-7722,7722,4100,Computer Hardware/ Software,2021,Fire Protection,6435
Nottinghamshire Fire and Rescue Service,103483,Risual Limited,Risual Limited,Management & Support Services,5,202211,17/12/2021,P6,9099898,-11063.74,11063.74,4101,Computer Software Maintenance Contracts,2095,ICT Digital Transformation,9219.78
Nottinghamshire Fire and Rescue Service,102757,Turner and Townsend Project Management,Turner and Townsend Project Management,Management & Support Services,5,202211,17/12/2021,P6,9099668,-12601.43,12601.43,C150,Professional Fees - Architects,4102,Strategic New Build Projects,10501.19
Nottinghamshire Fire and Rescue Service,102744,EDF Energy,EDF Energy,Operational Responses,1,202211,15/12/2021,P6,9099888,392.87,-392.87,2100,Electricity,1007,Warsop,-327.39
Nottinghamshire Fire and Rescue Service,104076,Sonovate Lithium3 Technology Contractor Services Invoices,Sonovate Lithium3 Technology Contractor Services Invoices,"Statutory Inspection, Certification & Enforcement",5,202211,15/12/2021,P6,9099495,-1680,1680,4100,Computer Hardware/ Software,2021,Fire Protection,1400
Nottinghamshire Fire and Rescue Service,104098,Total Gas & Power Limited,Total Gas & Power Limited,Operational Responses,5,202211,11/12/2021,P6,9099890,-1406.7,1406.7,2101,Gas,1020,Stockhill,1172.25
Nottinghamshire Fire and Rescue Service,103766,CERTAS,CERTAS,Operational Responses,5,202211,10/12/2021,P6,9099499,-6251.66,6251.66,3200,Fuel - Vehicle,1001,Mansfield,5209.72
Nottinghamshire Fire and Rescue Service,102744,EDF Energy,EDF Energy,Operational Responses,1,202211,08/12/2021,P6,9099757,-1388.08,1388.08,2100,Electricity,1026,Arnold,7.51
Nottinghamshire Fire and Rescue Service,102744,EDF Energy,EDF Energy,Operational Responses,1,202211,08/12/2021,P6,9099757,-1388.08,1388.08,2100,Electricity,1026,Arnold,1150.48
Nottinghamshire Fire and Rescue Service,103820,VIA East Midlands Ltd,VIA East Midlands Ltd,Management & Support Services,5,202211,08/12/2021,P6,9099538,-4195.47,4195.47,3100,Fleet Maintenance - Planned,2084,Engineering,3504.85
Nottinghamshire Fire and Rescue Service,103820,VIA East Midlands Ltd,VIA East Midlands Ltd,Management & Support Services,5,202211,08/12/2021,P6,9099511,-26958.41,26958.41,3103,Fleet Maintenance - Unplanned,2084,Engineering,22465.34
Nottinghamshire Fire and Rescue Service,103820,VIA East Midlands Ltd,VIA East Midlands Ltd,Management & Support Services,5,202211,08/12/2021,P6,9099512,-1561.55,1561.55,3103,Fleet Maintenance - Unplanned,2084,Engineering,1301.29
Nottinghamshire Fire and Rescue Service,103820,VIA East Midlands Ltd,VIA East Midlands Ltd,Management & Support Services,5,202211,08/12/2021,P6,9099514,-900.46,900.46,3103,Fleet Maintenance - Unplanned,2084,Engineering,750.38
Nottinghamshire Fire and Rescue Service,103820,VIA East Midlands Ltd,VIA East Midlands Ltd,Management & Support Services,5,202211,08/12/2021,P6,9099515,-1107.31,1107.31,3104,Fleet - Accident Repairs,2084,Engineering,922.76
Nottinghamshire Fire and Rescue Service,104076,Sonovate Lithium3 Technology Contractor Services Invoices,Sonovate Lithium3 Technology Contractor Services Invoices,"Statutory Inspection, Certification & Enforcement",5,202211,08/12/2021,P6,9099500,-13068,13068,4100,Computer Hardware/ Software,2021,Fire Protection,10890
Nottinghamshire Fire and Rescue Service,104126,Easy Resettlement Limited,Easy Resettlement Limited,Management & Support Services,5,202211,08/12/2021,P6,9099646,-1440,1440,4530,Printing,2051,Corporate Communications,1200
Nottinghamshire Fire and Rescue Service,100058,The Chief Fire Officers Association,The Chief Fire Officers Association,Operational Responses,1,202211,07/12/2021,P6,9099592,-12300,12300,1801,Training,2013,Service Delivery,10250
Nottinghamshire Fire and Rescue Service,102586,Cfoa (Services) Ltd,Cfoa (Services) Ltd,Operational Responses,1,202211,07/12/2021,P6,9099761,-1860.81,1860.81,2100,Electricity,1001,Mansfield,2.17
Nottinghamshire Fire and Rescue Service,102586,Cfoa (Services) Ltd,Cfoa (Services) Ltd,Operational Responses,1,202211,07/12/2021,P6,9099761,-1860.81,1860.81,2100,Electricity,1001,Mansfield,1548.87
Nottinghamshire Fire and Rescue Service,104178,Bellman & Symfon UK Limited,Bellman & Symfon UK Limited,Management & Support Services,5,202211,07/12/2021,P6,9099816,-1317.55,1317.55,4590,Smoke Alarms,2068,Prevention,7.96
Nottinghamshire Fire and Rescue Service,104178,Bellman & Symfon UK Limited,Bellman & Symfon UK Limited,Management & Support Services,5,202211,07/12/2021,P6,9099816,-1317.55,1317.55,4590,Smoke Alarms,2068,Prevention,1090
Nottinghamshire Fire and Rescue Service,100468,Specialised Canvas Group,Specialised Canvas Group,Operational Responses,1,202211,06/12/2021,P6,9099617,-300.08,300.08,4000,Operational Equipment Purchase,1012,Retford,232.83
Nottinghamshire Fire and Rescue Service,100468,Specialised Canvas Group,Specialised Canvas Group,Management & Support Services,1,202211,06/12/2021,P6,9099617,-300.08,300.08,4534,Carriage and Packaging,2086,Procurement,17.23
Nottinghamshire Fire and Rescue Service,103820,VIA East Midlands Ltd,VIA East Midlands Ltd,Management & Support Services,5,202211,01/12/2021,P6,9099518,-764.48,764.48,3103,Fleet Maintenance - Unplanned,2084,Engineering,637.07
Nottinghamshire Fire and Rescue Service,103847,Veolia ES UK Limited,Veolia ES UK Limited,Management & Support Services,5,202211,30/11/2021,P6,9099563,-1842.22,1842.22,2106,Refuse / Trade Waste Collection,2086,Procurement,1535.18
Nottinghamshire Fire and Rescue Service,103483,Risual Limited,Risual Limited,Management & Support Services,5,202211,24/11/2021,P6,9099896,-8987.24,8987.24,4101,Computer Software Maintenance Contracts,2095,ICT Digital Transformation,7489.37
Nottinghamshire Fire and Rescue Service,100408,Central Marine Services Ltd,Central Marine Services Ltd,Management & Support Services,1,202211,23/11/2021,P6,9099812,-409.2,409.2,4008,Equipment Reative Maintenance,2084,Engineering,341
Nottinghamshire Fire and Rescue Service,104098,Total Gas & Power Limited,Total Gas & Power Limited,Operational Responses,5,202211,11/11/2021,P6,9099899,-747.87,747.87,2101,Gas,1020,Stockhill,623.23
Nottinghamshire Fire and Rescue Service,103483,Risual Limited,Risual Limited,Management & Support Services,5,202211,27/10/2021,P6,9099897,-7648.79,7648.79,4101,Computer Software Maintenance Contracts,2095,ICT Digital Transformation,6373.99
Nottinghamshire Fire and Rescue Service,104098,Total Gas & Power Limited,Total Gas & Power Limited,Operational Responses,5,202211,23/10/2021,P6,9099900,-723.15,723.15,2101,Gas,1020,Stockhill,602.63
Nottinghamshire Fire and Rescue Service,102144,A W Elliott Technical Services,A W Elliott Technical Services,Management & Support Services,1,202211,23/10/2021,P6,9099921,-270,270,4594,Training/ Teaching Equipment,1030,Service Development Centre,270
Nottinghamshire Fire and Rescue Service,100259,Holmatro Uk Limited,Holmatro Uk Limited,Management & Support Services,1,202211,22/10/2021,P6,9099737,-377.76,377.76,4008,Equipment Reative Maintenance,2084,Engineering,314.8
Nottinghamshire Fire and Rescue Service,104098,Total Gas & Power Limited,Total Gas & Power Limited,Operational Responses,5,202211,21/10/2021,P6,9099797,-775.24,775.24,2101,Gas,1020,Stockhill,646.03
Nottinghamshire Fire and Rescue Service,104098,Total Gas & Power Limited,Total Gas & Power Limited,Operational Responses,5,202211,21/10/2021,P6,9099901,-627.73,627.73,2101,Gas,1020,Stockhill,523.11
Nottinghamshire Fire and Rescue Service,104098,Total Gas & Power Limited,Total Gas & Power Limited,Operational Responses,5,202211,21/10/2021,P6,9099902,-521.75,521.75,2101,Gas,1020,Stockhill,434.79
Nottinghamshire Fire and Rescue Service,104098,Total Gas & Power Limited,Total Gas & Power Limited,Operational Responses,5,202211,21/10/2021,P6,9099903,-763.83,763.83,2101,Gas,1020,Stockhill,636.53
Nottinghamshire Fire and Rescue Service,104098,Total Gas & Power Limited,Total Gas & Power Limited,Operational Responses,5,202211,21/10/2021,P6,9099905,-606.68,606.68,2101,Gas,1020,Stockhill,505.57
Nottinghamshire Fire and Rescue Service,104016,Horizon Environment Service t/a Pestokill Pest Control,Horizon Environment Service t/a Pestokill Pest Control,Operational Responses,5,202211,07/09/2021,P6,9099634,-1639.5,1639.5,2204,Contract Cleaning,1001,Mansfield,1366.25
Nottinghamshire Fire and Rescue Service,101712,Browne Jacobson LLP,Browne Jacobson LLP,Management & Support Services,1,202211,27/08/2021,P6,9099648,-11670.6,11670.6,7002,Legal Services,2058,HR Support,8600
Nottinghamshire Fire and Rescue Service,101712,Browne Jacobson LLP,Browne Jacobson LLP,Management & Support Services,1,202211,27/08/2021,P6,9099648,-11670.6,11670.6,7002,Legal Services,2087,Estates Department (Previously Premises),108.5
Nottinghamshire Fire and Rescue Service,101712,Browne Jacobson LLP,Browne Jacobson LLP,Management & Support Services,1,202211,27/08/2021,P6,9099648,-11670.6,11670.6,7002,Legal Services,2087,Estates Department (Previously Premises),168
Nottinghamshire Fire and Rescue Service,101712,Browne Jacobson LLP,Browne Jacobson LLP,"Statutory Inspection, Certification & Enforcement",1,202211,27/08/2021,P6,9099649,-525,525,7002,Legal Services,2021,Fire Protection,437.5
Nottinghamshire Fire and Rescue Service,101712,Browne Jacobson LLP,Browne Jacobson LLP,Management & Support Services,1,202211,27/08/2021,P6,9099648,-11670.6,11670.6,C157,Professional Fees - Legal,4102,Strategic New Build Projects,302
Nottinghamshire Fire and Rescue Service,101712,Browne Jacobson LLP,Browne Jacobson LLP,Management & Support Services,1,202211,27/08/2021,P6,9099648,-11670.6,11670.6,C157,Professional Fees - Legal,4102,Strategic New Build Projects,592
Nottinghamshire Fire and Rescue Service,104098,Total Gas & Power Limited,Total Gas & Power Limited,Operational Responses,5,202211,13/07/2021,P6,9099776,-406.01,406.01,2101,Gas,1006,Edwinstowe,338.34
Nottinghamshire Fire and Rescue Service,100055,Nottingham City Council,Nottingham City Council,Management & Support Services,4,202211,01/06/2021,P6,9099624,-20000,20000,4621,Contribution to Partnership Working,2068,Prevention,20000
Nottinghamshire Fire and Rescue Service,102235,Stitch-Tech Ltd,Stitch-Tech Ltd,Management & Support Services,1,202211,22/10/2020,P6,9099632,-381.67,381.67,4534,Carriage and Packaging,2086,Procurement,10.38
Nottinghamshire Fire and Rescue Service,102235,Stitch-Tech Ltd,Stitch-Tech Ltd,Management & Support Services,1,202211,22/10/2020,P6,9099632,-381.67,381.67,B314,Stock ,9999,Default,307.68
Nottinghamshire Fire and Rescue Service,100055,Nottingham City Council,Nottingham City Council,Management & Support Services,4,202211,23/02/2020,P6,9099936,-606,606,4581,Subscriptions,2054,Equalities Team,505
,***Note:,,,,,,,,,,,,,,,
,"***The report shows the payment in its original form. This means disaggregating many invoices into individual component payments many of which will be less than £250 in their own right. This explains why you will see many of the amounts showing less than £250. They were, however, paid as part of an invoice of £250 or more.

**** The Invoice date is the date issued on the invoice. This date may fall out of the date range for the report. In most cases this is due to the invoice being received  late.",,,,,,,,,,,,,,,